Workbook

Sheet Koyun
B1: KOYUNLAR İÇİN EN DÜŞÜK MALİYETLİ | G1: Coşkun & İnal & İnal | J1: =TODAY() -> 2025-08-18 | P1: Selçuk Üniversitesi Veteriner Fakültesi Rasyon Hazırlama Programları
B2: Rasyon Hazırlama Programı
B3: VERİLECEK YEMLER | C3: MİKTAR | D3: Fiyat, ₺ | E3: Yemler için | G3: BESİN MADDESİ | H3: İHTİYAÇLAR | I3: RASYON | J3: SONUÇ | K3: KM'de % | M3: Gerekli Kesif Yem Miktarı | P3: F.İNAL - Ş.İNAL - B.COŞKUN
C4: =SUM(Rapor!Y5:Y30) -> 1.138045071 | D4: =(C5*D5+C6*D6+C7*D7+C8*D8+C9*D9+C10*D10+C11*D11+C12*D12+C13*D13+C14*D14+C15*D15+C16*D16+C17*D17+C18*D18+C19*D19+C20*D20+C21*D21+C22*D22+C23*D23+C24*D24+C25*D25+C26*D26+C27*D27+C28*D28+C29*D29+C30*D30) -> 4.238181387 | E4: En az | F4: En çok | G4: =Rapor!G4 -> KM,kg | H4: 1.00415 | I4: =Rapor!I4 -> 1.024233 | J4: =Rapor!J4 -> FAZLA | M4: ve KM'deki Bileşimi
A5: 1 | B5: Arpa Samanı | C5: 0.8561202809 | D5: 1.5 | E5: 0 | F5: 1 | G5: =Rapor!G5 -> ME,Mcal | H5: 1.92265 | I5: =Rapor!I5 -> 1.90534615 | J5: =Rapor!J5 -> TAMAM | K5: =Rapor!K5 -> 1860 kcal/kg | M5: Miktar,kg | N5: =Rapor!O5 -> -0.02256516897
A6: 1 | B6: Yonca Kuru Otu, Olgun | C6: 0 | D6: 8.5 | E6: 0 | F6: 2 | G6: =Rapor!G6 -> Ham Protein,g | H6: 79.146 | I6: =Rapor!I6 -> 78.43368605 | J6: =Rapor!J6 -> TAMAM | K6: =Rapor!K6 -> 7,7 | M6: HP,% | N6: =Rapor!O6 -> -3.546850251
A7: 4 | B7: Arpa, Tane | C7: 0.1549185277 | D7: 8.5 | E7: 0 | F7: 0.5 | G7: =Rapor!G7 -> Metabolik Protein | I7: =Rapor!I7 -> 54.88106715 | K7: =Rapor!K7 -> 5.358259998 | M7: ME,Mcal | N7: =Rapor!O7 -> -0.8616167738
A8: 6 | B8: PAMUK TOHUMU KÜSPESİ, SOLVENT, % 25 | C8: 0.1236982687 | D8: 13 | E8: 0 | F8: 0.2 | G8: =Rapor!G8 -> Rumende Yıkılabilir Protein | I8: =Rapor!I8 -> 60.62879438 | K8: =Rapor!K8 -> 5.919433797 | M8: Ca,% | N8: =Rapor!O8 -> 4.849006527
A9: 7 | B9: Dikalsiyum Fosfat | C9: 0 | D9: 35 | E9: 0 | F9: 0.07 | G9: =Rapor!G9 -> Rumende Yıkımlanmayan Protein | I9: =Rapor!I9 -> 49.00028149 | K9: =Rapor!K9 -> 4.784095169 | M9: P,% | N9: =Rapor!O9 -> 3.690229825
A10: 7 | B10: Mermer Tozu | C10: 0.001307993208 | D10: 2 | E10: 0 | F10: 0.1 | G10: =Rapor!G10 -> Ca,g | H10: 2.3735 | I10: =Rapor!I10 -> 3.347325999 | J10: =Rapor!J10 -> FAZLA | K10: =Rapor!K10 -> 0,33 | P10: Rasyonu hazırlanan hayvanın
A11: 7 | B11: Tuz | C11: 0.001 | D11: 1.5 | E11: 0.001 | F11: 0.005 | G11: =Rapor!G11 -> P,g | H11: 1.8063 | I11: =Rapor!I11 -> 2.54740887 | J11: =Rapor!J11 -> FAZLA | K11: =Rapor!K11 -> 0,25 | P11: Tipi : | Q11: =IF(KoyunTipi="","",KoyunTipi) -> Koyun
A12: 7 | B12: Vitamin-Mineral Karması | C12: 0.001 | D12: 25 | E12: 0.001 | F12: 0.004 | G12: =Rapor!G12 -> Ca/P Oranı | H12: 1.314012069 | I12: =Rapor!I12 -> 1.314012069 | J12: =Rapor!J12 -> TAMAM | K12: =Rapor!K12 -> 0 | P12: Fizyolojik Durumu : | Q12: =IF(KoyunFizyo="","",KoyunFizyo) -> Flaşing
C13: 0 | E13: 0 | F13: 0 | G13: =Rapor!G13 -> Kaba Yem,% | K13: =Rapor!K13 -> 75.22782927 | P13: Yavru Sayısı : | Q13: =IF(KoyunYavruSay="","",KoyunYavruSay) -> 
C14: 0 | E14: 0 | F14: 0 | G14: =Rapor!G14 -> HS,% | K14: =Rapor!K14 -> 33.69749322 | P14: Yaşı : | Q14: =IF(KoyunYas="","",KoyunYas) -> 
C15: 0 | E15: 0 | F15: 0 | G15: =Rapor!G15 -> NDF,% | K15: =Rapor!K15 -> 64.11756807 | P15: Bulunduğu Ortam : | Q15: =IF(KoyunOrtam="","",KoyunOrtam) -> 
C16: 0 | E16: 0 | F16: 0 | P16: Canlı Ağırlık : | Q16: =IF(CA="","",CONCATENATE(CA," kg")) -> 50 kg
C17: 0 | E17: 0 | F17: 0 | P17: Canlı Ağırlık Artışı : | Q17: =IF(GCAA="","",CONCATENATE(GCAA," g/gün")) -> 
C18: 0 | E18: 0 | F18: 0 | G18: KOYUNUN
C19: 0 | E19: 0 | F19: 0 | G19: Tipi : | H19: Koyun
C20: 0 | E20: 0 | F20: 0 | G20: Fizyolojik Durumu : | H20: Flaşing
C21: 0 | E21: 0 | F21: 0 | G21: Yavru Sayısı : | Q21: GÜNLÜK | R21: BESİN
C22: 0 | E22: 0 | F22: 0 | G22: Yaşı : | P22: VERİLECEK YEMLER | Q22: MİKTAR,kg | R22: MADDELERİ | S22: İHTİYAÇ | T22: RASYON | U22: SONUÇ
C23: 0 | E23: 0 | F23: 0 | G23: Canlı Ağırlık : | H23: 50 | I23: kg | P23: Buğday Samanı | Q23: 0.2768477973 | R23: KM, kg | S23: 1.59375 | T23: 1.625624998 | U23: TAMAM
C24: 0 | E24: 0 | F24: 0 | G24: Canlı Ağırlık Artışı : | I24: g/gün | P24: Mısır Sapları | Q24: 1 | R24: ME, Mcal | S24: 3.71565 | T24: 3.68220915 | U24: TAMAM
C25: 0 | E25: 0 | F25: 0 | P25: Arpa, Tane | Q25: 0.5 | R25: Ham Protein,g | S25: 135.67015 | T25: 134.4491187 | U25: TAMAM
C26: 0 | E26: 0 | F26: 0 | P26: Mısır, Tane | Q26: 0.01326134327 | R26: Metabolik Protein,g | T26: 94.08288706
C27: 0 | E27: 0 | F27: 0 | P27: PAMUK TOHUMU KÜSPESİ, SOLVENT, % 28 | Q27: 0.115369947 | R27: Rumende Yıkılabilir Protein,g | T27: 90.26559758
C28: 0 | E28: 0 | F28: 0 | P28: Mermer Tozu | Q28: 0.01126211065 | R28: Rumende Yıkımlanmayan Protein,g | T28: 53.47890965
C29: 0 | E29: 0 | F29: 0 | P29: Vitamin-Mineral Karması | Q29: 0.001 | R29: Ca, g | S29: 6.162225 | T29: 7.787036346 | U29: FAZLA
C30: 0 | E30: 0 | F30: 0 | R30: P, g | S30: 3.7069 | T30: 4.684308841 | U30: FAZLA
R31: Ca/P Oranı | S31: 1.662366128 | T31: 1.662366127 | U31: TAMAM
R32: Kaba Yem,%
R33: HS,%
R34: NDF,%
S40: Hazırlayan:
S41: saim
P49: TOPLAM = | Q49: 1.917741198 | R49: kg
P50: Kurum: | S50: Tarih:
P51: S.Ü.VET.FAK.ZOO.ABD | S51: 20.03.2019

Sheet Rapor
B1: Koyunlar İçin | G1: Coşkun & İnal & İnal | T1: KOYUNUN TANIMLANMASI | Z1: 2 | AA1: 3 | AB1: 4 | AC1: 5 | AD1: 6 | AE1: 7 | AF1: 8 | AG1: 9 | AH1: 10 | AI1: 11 | AZ1: Seçilen Yemler | DD1: Seçilen
B2: Rasyon Hazırlama Programı | T2: =CONCATENATE(KoyunTipi,", ",KoyunFizyo,", ",KoyunYavruSay,", ",KoyunYas) -> Koyun, Flaşing, , | X2: VERİLECEK YEMLER | Y2: =SUM(Y5:Y30) -> 1.138045071 | AZ2: Toplu yem seçimi için kullanılır | BA2: HAYVANIN ÖZELLİĞİ | BB2: KM | BC2: ME | BD2: HP(20) | BE2: HP(40) | BF2: HP(60) | BG2: MP | BH2: DIP | BI2: Ca | BJ2: P | BK2: SütVerimi | BL2: VitE,IU | BM2: Na,g | BN2: Cl,g | BO2: K,g | BP2: Mg,g | BQ2: S,g | BR2: Co,mg | BS2: Cu,mg | BT2: I,mg | BU2: Fe,mg | BV2: Mn,mg | BW2: Se,mg | BX2: Zn,mg | BZ2: KURU KABA YEMLER | CA2: KM,% | CB2: ME, Mcal/kg | CC2: HP,% | CD2: MP,% | CE2: DIP,% | CF2: RUP,% | CG2: Ca,% | CH2: P,% | CI2: HS,% | CJ2: NDF,% | CK2: TSBM,% | CL2: SE, Mcal/kg | CM2: NEyp, Mcal/kg | CN2: NEb, Mcal/kg | CO2: NEl, Mcal/kg | CP2: ADF,% | CQ2: eNDF,% | CR2: HY,% | CS2: HK,% | CT2: K,% | CU2: Cl,% | CV2: S,% | CW2: Zn,ppm | CX2: VitA, RE/kg | CY2: VitE,ppm | CZ2: Fiyat,TL | DA2: En az | DB2: En çok | DD2: Yemler
B3: VERİLECEK YEMLER | C3: MİKTAR | D3: Fiyat, ₺ | E3: Yemler için | G3: BESİN MAD. | H3: İHTİYAÇLAR | I3: RASYON | J3: SONUÇ | K3: KM'de % | M3: Gerekli Kesif Yem Miktarı | Y3: Miktar | Z3: KM | AA3: ME | AB3: HP | AC3: MP | AD3: DIP | AE3: RUP | AF3: Ca | AG3: P | AH3: HS | AI3: NDF | BA3: Koyun, Yaşama payı, , | BB3: =-0.0000185*CA^2+0.0154*CA+0.1864 -> 0.91015 | BC3: =-0.0000333*CA^2 + 0.029*CA + 0.3816 -> 1.74835 | BD3: =-0.00087*CA^2+ 1.0755*CA + 17.521 -> 69.121 | BE3: =-0.0009*CA^2 + 1.0476*CA + 15.95 -> 66.08 | BF3: =-0.00083*CA^2+ 0.9929*CA + 15.553 -> 63.123 | BG3: =-0.0004*CA^2 + 0.6918*CA + 13.228 -> 46.818 | BH3: =-0.001418*CA^2 + 1.0841*CA + 12.091 -> 62.751 | BI3: =-0.00002*CA^2 + 0.0224*CA + 0.932 -> 2.002 | BJ3: =-0.00003*CA^2 + 0.0276*CA + 0.2274 -> 1.5324 | BY3: 1 | BZ3: Adi Japon Üçgülü (Lespedeza) Kuru Otu | CA3: 92 | CB3: 2 | CC3: 14 | CD3: 9.8 | CE3: 9.6 | CF3: 8.4 | CG3: 1.1 | CH3: 0.22 | CI3: 30 | CK3: 54 | CL3: 2.4 | CM3: 1.2 | CN3: 0.4 | CO3: 1.2 | CR3: 3 | CS3: 7 | CT3: 1 | CV3: 0.19 | CW3: 29 | CX3: 8 | CZ3: 8 | DA3: 0 | DB3: 1
C4: =SUM(Y5:Y30) -> 1.138045071 | D4: =Koyun!D4 -> 4.238181387 | E4: En az | F4: En çok | G4: KM,kg | H4: =Koyun!H4 -> 1.00415 | I4: =Z32 -> 1.024233 | J4: =IF(OR(H4="",H4=0)=TRUE," ",IF(I4>(H4*1.02),"FAZLA",IF(I4<(H4*0.99),"EKSİK","TAMAM"))) -> FAZLA | M4: ve KM'deki Bileşimi | T4: Yem Grupları | AZ4: KİREÇTAŞI | BA4: Koyun, Flaşing, , | BB4: =-0.0000195*CA^2+ 0.0166*CA + 0.2229 -> 1.00415 | BC4: =-0.0000403*CA^2 + 0.0324*CA + 0.4034 -> 1.92265 | BD4: =-0.00125*CA^2+ 1.2988*CA + 19.151 -> 80.966 | BE4: =-0.00105*CA^2 + 1.2172*CA + 19.091 -> 77.326 | BF4: =-0.001*CA^2+ 1.1749*CA + 17.831 -> 74.076 | BG4: =-0.00084*CA^2 + 0.8802*CA + 12.461 -> 54.371 | BH4: =-0.001445*CA^2 + 1.1706*CA + 14.443 -> 69.3605 | BI4: =-0.000027*CA^2 + 0.0284*CA + 1.021 -> 2.3735 | BJ4: =-0.000035*CA^2 + 0.0332*CA + 0.2338 -> 1.8063 | BY4: 2 | BZ4: Arpa Kuru Otu | CA4: 90 | CB4: 2.1 | CC4: 9 | CD4: 6.3 | CE4: 5.1 | CG4: 0.3 | CH4: 0.28 | CI4: 28 | CJ4: 65 | CK4: 57 | CL4: 2.5 | CM4: 1.3 | CN4: 0.6 | CO4: 1.3 | CP4: 37 | CQ4: 98 | CR4: 2.1 | CS4: 8 | CT4: 1.6 | CV4: 0.19 | CW4: 25 | CX4: 10.6 | CZ4: 5 | DA4: 0 | DB4: 1
A5: =Koyun!A5 -> 1 | B5: =Koyun!B5 -> Arpa Samanı | C5: =Koyun!C5 -> 0.8561202809 | D5: =Koyun!D5 -> 1.5 | E5: =Koyun!E5 -> 0 | F5: =Koyun!F5 -> 1 | G5: ME,Mcal | H5: =Koyun!H5 -> 1.92265 | I5: =AA32 -> 1.90534615 | J5: =IF(OR(H5="",H5=0)=TRUE," ",IF(I5>(H5*1.01),"FAZLA",IF(I5<(H5*0.99),"EKSİK","TAMAM"))) -> TAMAM | K5: =IF(I$5>0,CONCATENATE(TEXT((I5*1000)/I$4,"0")," kcal/kg"),"") -> 1860 kcal/kg | M5: Miktar,kg | O5: =(H23-I4)/0.89 -> -0.02256516897 | T5: Kuru Kaba Yemler | X5: =Koyun!B5 -> Arpa Samanı | Y5: =IF(X5=0,0,C5) -> 0.8561202809 | Z5: =IF($X5=0,0,VLOOKUP($B5,$BZ$3:$DB$533,Z$1,FALSE)) -> 90 | AA5: 1.6 | AB5: 4 | AC5: 2.8 | AD5: 0.6 | AE5: 2.8 | AF5: 0.33 | AG5: 0.08 | AH5: 42 | AI5: 78 | AZ5: VİTAMİN-MİNERAL KARMASI | BA5: Koyun, Erken Gebe, Tek kuzu, | BB5: =-0.0000239*CA^2+0.0183*CA+0.2998 -> 1.15505 | BC5: =-0.0000457*CA^2 + 0.0351*CA + 0.568 -> 2.20875 | BD5: =-0.0016*CA^2 + 1.4219*CA + 28.279 -> 95.374 | BE5: =-0.0015*CA^2 + 1.3478*CA + 27.365 -> 91.005 | BF5: =-0.00156*CA^2 + 1.3182*CA + 25.014 -> 87.024 | BG5: =-0.00118*CA^2+ 0.9776*CA + 18.137 -> 64.067 | BH5: =-0.001697*CA^2 + 1.2681*CA + 20.521 -> 79.6835 | BI5: =-0.00006*CA^2 + 0.0434*CA + 1.7799 -> 3.7999 | BJ5: =-0.00006*CA^2 + 0.0434*CA + 0.7799 -> 2.7999 | BY5: 3 | BZ5: Arpa Samanı | CA5: 90 | CB5: 1.6 | CC5: 4 | CD5: 2.8 | CE5: 0.6 | CF5: 2.8 | CG5: 0.33 | CH5: 0.08 | CI5: 42 | CJ5: 78 | CK5: 4.3 | CL5: 1.9 | CM5: 1 | CN5: 0 | CO5: 0.9 | CP5: 52 | CQ5: 100 | CR5: 1.9 | CS5: 7 | CT5: 2.1 | CU5: 0.67 | CV5: 0.16 | CW5: 7 | CX5: 400 | CZ5: 1.5 | DA5: 0 | DB5: 1
A6: =Koyun!A6 -> 1 | B6: =Koyun!B6 -> Yonca Kuru Otu, Olgun | C6: =Koyun!C6 -> 0 | D6: =Koyun!D6 -> 8.5 | E6: =Koyun!E6 -> 0 | F6: =Koyun!F6 -> 2 | G6: Ham Protein,g | H6: =Koyun!H6 -> 79.146 | I6: =AB32 -> 78.43368605 | J6: =IF(OR(H6="",H6=0)=TRUE," ",IF(I6>(H6*1.01),"FAZLA",IF(I6<(H6*0.99),"EKSİK","TAMAM"))) -> TAMAM | K6: =IF(I6>0,CONCATENATE(TEXT(I6/(I$4*1000)*100,"0,0")),"") -> 7,7 | M6: HP,% | O6: =((H25-I6)/10)/($H23-$I4) -> -3.546850251 | T6: Sulu Kaba Yemler | X6: =Koyun!B6 -> Yonca Kuru Otu, Olgun | Y6: 0 | Z6: 88 | AA6: 1.8 | AB6: 13 | AC6: 9.1 | AD6: 8.7 | AE6: 3.9 | AF6: 1.18 | AG6: 0.19 | AH6: 38 | AI6: 59 | AZ6: TUZ | BA6: Koyun, Erken Gebe, İkiz kuzu, | BB6: =-0.00003*CA^2+0.021*CA+0.3504 -> 1.3254 | BC6: =-0.000054*CA^2 + 0.03965*CA + 0.6923 -> 2.5398 | BD6: =-0.002*CA^2 + 1.6722*CA + 35.47 -> 114.08 | BE6: =-0.00205*CA^2 + 1.6257*CA + 32.758 -> 108.918 | BF6: =-0.0018*CA^2+ 1.5236*CA + 32.525 -> 104.205 | BG6: =-0.00138*CA^2 + 1.1279*CA + 23.913 -> 76.858 | BH6: =-0.002073*CA^2 + 1.4551*CA + 23.708 -> 91.2805 | BI6: =-0.000117*CA^2 + 0.0677*CA + 2.2918 -> 5.3843 | BJ6: =-0.000099*CA^2 + 0.0587*CA + 1.0151 -> 3.7026 | BY6: 4 | BZ6: Badem Kabukları | CA6: 89 | CB6: 2.1 | CC6: 5 | CD6: 3.5 | CE6: 1.5 | CF6: 3 | CG6: 0.25 | CH6: 0.1 | CI6: 16 | CJ6: 35 | CK6: 59 | CL6: 2.6 | CM6: 1.3 | CN6: 0.6 | CO6: 1.3 | CP6: 27 | CQ6: 100 | CR6: 3.3 | CS6: 7 | CT6: 2 | CU6: 0.03 | CV6: 0.07 | CW6: 20 | CZ6: 3 | DA6: 0 | DB6: 1
A7: =Koyun!A7 -> 4 | B7: =Koyun!B7 -> Arpa, Tane | C7: =Koyun!C7 -> 0.1549185277 | D7: =Koyun!D7 -> 8.5 | E7: =Koyun!E7 -> 0 | F7: =Koyun!F7 -> 0.5 | G7: Metabolik Protein | I7: =AC32 -> 54.88106715 | K7: =AC32/Z32/10 -> 5.358259998 | M7: ME,Mcal | O7: =(H24-I5)/($H23-$I4) -> -0.8616167738 | T7: Silajlar | X7: =Koyun!B7 -> Arpa, Tane | Y7: 0.1549185277 | Z7: 89 | AA7: 3 | AB7: 12 | AC7: 8.4 | AD7: 7.8 | AE7: 3.4 | AF7: 0.06 | AG7: 0.38 | AH7: 5 | AI7: 20 | BA7: Koyun, Erken Gebe, Üçüz kuzu, | BB7: =- 0.00002*CA^2 + 0.0207*CA + 0.4929 -> 1.4779 | BC7: =-0.000055*CA^2 + 0.0416*CA + 0.8406 -> 2.7831 | BD7: =-0.00158*CA^2+ 1.6866*CA + 48.693 -> 129.073 | BE7: =-0.0036*CA^2+ 2.0343*CA + 26.457 -> 119.172 | BF7: =-0.00325*CA^2 + 1.9149*CA + 26.21 -> 113.83 | BG7: =-0.00249*CA^2 + 1.4299*CA + 18.575 -> 83.845 | BH7: =-0.00202*CA^2+ 1.5084*CA + 29.795 -> 100.165 | BI7: =-0.000187*CA^2 + 0.091*CA + 2.2479 -> 6.3304 | BJ7: =-0.000174*CA^2 + 0.079*CA + 0.6644 -> 4.1794 | BY7: 5 | BZ7: Beyaz Üçgül (Clover Ladino) Kuru Otu | CA7: 90 | CB7: 2.2 | CC7: 21 | CD7: 14.7 | CE7: 15.9 | CF7: 5.3 | CG7: 1.35 | CH7: 0.32 | CI7: 22 | CJ7: 36 | CK7: 61 | CL7: 2.7 | CM7: 1.4 | CN7: 0.7 | CO7: 1.3 | CP7: 32 | CQ7: 92 | CR7: 2 | CS7: 9 | CT7: 2.4 | CU7: 0.3 | CV7: 0.2 | CW7: 17 | CX7: 16.6 | CZ7: 12 | DA7: 0 | DB7: 1
A8: =Koyun!A8 -> 6 | B8: =Koyun!B8 -> PAMUK TOHUMU KÜSPESİ, SOLVENT, % 25 | C8: =Koyun!C8 -> 0.1236982687 | D8: =Koyun!D8 -> 13 | E8: =Koyun!E8 -> 0 | F8: =Koyun!F8 -> 0.2 | G8: Rumende Yıkılabilir Protein | I8: =AD32 -> 60.62879438 | K8: =AD32/Z32/10 -> 5.919433797 | M8: Ca,% | O8: =((H29-I10)/10)/($H23-$I4) -> 4.849006527 | T8: Enerji Kaynakları | X8: =Koyun!B8 -> PAMUK TOHUMU KÜSPESİ, SOLVENT, % 25 | Y8: 0.1236982687 | Z8: 91 | AA8: 2.3 | AB8: 27.6 | AC8: 19.3 | AD8: 40.2 | AE8: 20.2 | AF8: 0.22 | AG8: 1.25 | AH8: 13 | AI8: 25 | BA8: Koyun, Geç Gebe, Tek kuzu, | BB8: =- 0.0000383*CA^2 + 0.0235*CA + 0.3456 -> 1.42485 | BC8: =-0.00006*CA^2+ 0.04193*CA + 0.8059 -> 2.7524 | BD8: =-0.00217*CA^2 + 1.7701*CA + 42.733 -> 125.813 | BE8: =-0.0037*CA^2 + 2.0319*CA + 24.169 -> 116.514 | BF8: =-0.0035*CA^2 + 1.9288*CA + 23.927 -> 111.617 | BG8: =-0.0024*CA^2 + 1.3908*CA + 18.877 -> 82.417 | BH8: =-0.00193*CA^2 + 1.4747*CA + 30.475 -> 99.385 | BI8: =-0.000165*CA^2 + 0.0752*CA + 1.6667 -> 5.0142 | BJ8: =-0.000165*CA^2+ 0.0704*CA + 0.2411 -> 3.3486 | BY8: 6 | BZ8: Bezelye Kuru Otu | CA8: 89 | CB8: 2.2 | CC8: 10 | CD8: 7 | CE8: 6 | CF8: 0 | CG8: 1.2 | CH8: 0.21 | CI8: 32 | CJ8: 62 | CK8: 60 | CL8: 2.6 | CM8: 1.3 | CN8: 0.7 | CO8: 1.3 | CP8: 52 | CQ8: 92 | CR8: 1.8 | CS8: 7 | CT8: 1.2 | CU8: 0 | CV8: 0.2 | CW8: 20 | CX8: 0 | CY8: 0 | CZ8: 10 | DA8: 0 | DB8: 1
A9: =Koyun!A9 -> 7 | B9: =Koyun!B9 -> Dikalsiyum Fosfat | C9: =Koyun!C9 -> 0 | D9: =Koyun!D9 -> 35 | E9: =Koyun!E9 -> 0 | F9: =Koyun!F9 -> 0.07 | G9: Rumende Yıkımlanmayan Protein | I9: =AE32 -> 49.00028149 | K9: =AE32/Z32/10 -> 4.784095169 | M9: P,% | O9: =((H30-I11)/10)/($H23-$I4) -> 3.690229825 | T9: Yan Ürünler | X9: =Koyun!B9 -> Dikalsiyum Fosfat | Y9: 0 | Z9: 96 | AA9: 0 | AB9: 0 | AC9: 0 | AD9: 3 | AE9: 0 | AF9: 22 | AG9: 18.65 | AH9: 0 | AI9: 0 | BA9: Koyun, Geç Gebe, İkiz kuzu, | BB9: =- 0.0000076*CA^2 + 0.0197*CA + 0.4773 -> 1.4433 | BC9: =-0.000075*CA^2+ 0.0512*CA + 1.1335 -> 3.506 | BD9: =-0.0041*CA^2 + 2.6804*CA + 27.53 -> 151.3 | BE9: =-0.0035*CA^2 + 2.4892*CA + 28.991 -> 144.701 | BF9: =-0.00368*CA^2 + 2.4414*CA + 25.1 -> 137.97 | BG9: =-0.002575*CA^2+ 1.7752*CA + 19.21 -> 101.5325 | BH9: =-0.00287*CA^2 + 1.8717*CA + 39.895 -> 126.305 | BI9: =-0.000198*CA^2 + 0.1092*CA + 2.2438 -> 7.2088 | BJ9: =-0.000152*CA^2 + 0.0896*CA + 0.0224 -> 4.1224 | BY9: 7 | BZ9: Bezelye Samanı | CA9: 89 | CB9: 1.8 | CC9: 7 | CD9: 4.9 | CE9: 3.3 | CG9: 0.6 | CH9: 0.15 | CI9: 42 | CJ9: 72 | CK9: 50 | CL9: 2.2 | CM9: 1.1 | CN9: 0.3 | CO9: 1.1 | CP9: 49 | CQ9: 98 | CR9: 1.3 | CS9: 7 | CT9: 1.1 | CV9: 0.15 | CZ9: 3 | DA9: 0 | DB9: 1
A10: =Koyun!A10 -> 7 | B10: =Koyun!B10 -> Mermer Tozu | C10: =Koyun!C10 -> 0.001307993208 | D10: =Koyun!D10 -> 2 | E10: =Koyun!E10 -> 0 | F10: =Koyun!F10 -> 0.1 | G10: Ca,g | H10: =Koyun!H10 -> 2.3735 | I10: =AF32 -> 3.347325999 | J10: =IF(OR(H10="",H10=0)=TRUE," ",IF(I10>(H10*1.01),"FAZLA",IF(I10<(H10*0.99),"EKSİK","TAMAM"))) -> FAZLA | K10: =IF(I10>0,CONCATENATE(TEXT(I10/(I$4*1000)*100,"0,00")),"") -> 0,33 | T10: Protein Kaynakları | X10: =Koyun!B10 -> Mermer Tozu | Y10: 0.001307993208 | Z10: 98 | AA10: 0 | AB10: 0 | AC10: 0 | AD10: 0 | AE10: 0 | AF10: 37 | AG10: 0 | AH10: 0 | AI10: 0 | BA10: Koyun, Geç Gebe, Üçüz kuzu, | BB10: =- 0.0000161*CA^2 + 0.0233*CA + 0.3589 -> 1.48365 | BC10: =-0.000086*CA^2 + 0.057*CA + 1.3899 -> 4.0249 | BD10: =-0.0067*CA^2 + 3.0971*CA + 35.342 -> 173.447 | BE10: =0.0005*CA^2 + 1.9335*CA + 67.854 -> 165.779 | BF10: =0.0002*CA^2 + 1.8986*CA + 62.922 -> 158.352 | BG10: =0.00036*CA^2 + 1.3673*CA + 47.274 -> 116.539 | BH10: =-0.00276*CA^2 + 2.0077*CA + 51.018 -> 144.503 | BI10: =-0.000058*CA^2 + 0.0969*CA + 4.0132 -> 8.7132 | BJ10: =0.000078*CA^2 + 0.0529*CA + 1.9347 -> 4.7747 | BY10: 8 | BZ10: Brom Otu (Bromegrass) Kuru Otu | CA10: 89 | CB10: 2 | CC10: 10 | CD10: 7 | CE10: 6 | CF10: 33 | CG10: 0.4 | CH10: 0.23 | CI10: 35 | CJ10: 66 | CK10: 55 | CL10: 2.4 | CM10: 1.2 | CN10: 0.5 | CO10: 1.2 | CP10: 41 | CQ10: 98 | CR10: 2.3 | CS10: 9 | CT10: 1.9 | CU10: 0.4 | CV10: 0.19 | CW10: 19 | CX10: 6.8 | CZ10: 8 | DA10: 0 | DB10: 1
A11: =Koyun!A11 -> 7 | B11: =Koyun!B11 -> Tuz | C11: =Koyun!C11 -> 0.001 | D11: =Koyun!D11 -> 1.5 | E11: =Koyun!E11 -> 0.001 | F11: =Koyun!F11 -> 0.005 | G11: P,g | H11: =Koyun!H11 -> 1.8063 | I11: =AG32 -> 2.54740887 | J11: =IF(OR(H11="",H11=0)=TRUE," ",IF(I11>(H11*1.01),"FAZLA",IF(I11<(H11*0.99),"EKSİK","TAMAM"))) -> FAZLA | K11: =IF(I11>0,CONCATENATE(TEXT(I11/(I$4*1000)*100,"0,00")),"") -> 0,25 | T11: Vitamin-Mineral ve Katkı Maddeleri | X11: =Koyun!B11 -> Tuz | Y11: 0.001 | Z11: 100 | AA11: 0 | AB11: 0 | AC11: 0 | AD11: 0 | AE11: 0 | AF11: 0 | AG11: 0 | AH11: 0 | AI11: 0 | BA11: Koyun, Erken laktasyon, Tek kuzu, 1,5 yaş üzeri | BB11: =- 0.0000646*CA^2 + 0.0296*CA + 0.1783 -> 1.4968 | BC11: =-0.000061*CA^2 + 0.044*CA + 0.9448 -> 2.9923 | BD11: =-0.006*CA^2 + 3.0108*CA + 44.503 -> 180.043 | BE11: =-0.006*CA^2 + 2.9105*CA + 42.575 -> 173.1 | BF11: =-0.0055*CA^2 + 2.7405*CA + 42.05 -> 165.325 | BG11: =-0.004095*CA^2 + 2.0208*CA + 31.073 -> 121.8755 | BH11: =-0.0024*CA^2 + 1.6058*CA + 33.854 -> 108.144 | BI11: =-0.000183*CA^2 + 0.0762*CA + 1.3621 -> 4.7146 | BJ11: =-0.000224*CA^2 + 0.0893*CA + 0.2064 -> 4.1114 | BK11: 0,71-1,32 kg | BY11: 9 | BZ11: Buğday Kuru Otu | CA11: 90 | CB11: 2.1 | CC11: 9 | CD11: 6.3 | CE11: 5.1 | CF11: 2.3 | CG11: 0.21 | CH11: 0.22 | CI11: 29 | CJ11: 66 | CK11: 57 | CL11: 2.5 | CM11: 1.3 | CN11: 0.6 | CO11: 1.3 | CP11: 38 | CQ11: 98 | CR11: 2 | CS11: 8 | CT11: 1.4 | CU11: 0.5 | CV11: 0.19 | CW11: 23 | CX11: 17 | CZ11: 8 | DA11: 0 | DB11: 1
A12: =Koyun!A12 -> 7 | B12: =Koyun!B12 -> Vitamin-Mineral Karması | C12: =Koyun!C12 -> 0.001 | D12: =Koyun!D12 -> 25 | E12: =Koyun!E12 -> 0.001 | F12: =Koyun!F12 -> 0.004 | G12: Ca/P Oranı | H12: =Koyun!H12 -> 1.314012069 | I12: =I10/I11 -> 1.314012069 | J12: =IF(OR(H12="",H12=0)=TRUE," ",IF(I12>(H12*1.01),"FAZLA",IF(I12<(H12*0.99),"EKSİK","TAMAM"))) -> TAMAM | X12: =Koyun!B12 -> Vitamin-Mineral Karması | Y12: =IF(X12=0,0,C12) -> 0.001 | Z12: 100 | AA12: 0 | AB12: 0 | AC12: 0 | AD12: 0 | AE12: 0 | AF12: 0 | AG12: 0 | AH12: 0 | AI12: 0 | BA12: Koyun, Erken laktasyon, İkiz kuzu, 1,5 yaş üzeri | BB12: =- 0.0000074*CA^2 + 0.0191*CA + 0.6647 -> 1.6012 | BC12: =-0.0000865*CA^2 + 0.0548*CA + 1.318 -> 3.84175 | BD12: =0.00148*CA^2 + 2.2437*CA + 139.56 -> 255.445 | BE12: =-0.0002*CA^2+ 2.517*CA + 115.16 -> 240.51 | BF12: =-0.00018*CA^2 + 2.3997*CA + 110.53 -> 230.065 | BG12: =-0.00027*CA^2 + 1.7879*CA + 80.479 -> 169.199 | BH12: =-0.00315*CA^2 + 1.9769*CA + 47.621 -> 138.591 | BI12: =0.000055*CA^2 + 0.0533*CA + 3.847 -> 6.6495 | BJ12: =0.000144*CA^2 + 0.0417*CA + 3.1854 -> 5.6304 | BK12: 1,18-2,21 kg | BY12: 10 | BZ12: Buğday Samanı | CA12: 91 | CB12: 1.5 | CC12: 3 | CD12: 2.1 | CE12: 0.3 | CF12: 1.8 | CG12: 0.16 | CH12: 0.05 | CI12: 43 | CJ12: 81 | CK12: 42 | CL12: 1.9 | CM12: 0.9 | CN12: 0 | CO12: 0.9 | CP12: 58 | CQ12: 98 | CR12: 1.8 | CS12: 8 | CT12: 1.3 | CU12: 0.32 | CV12: 0.17 | CW12: 6 | CX12: 400 | CZ12: 6 | DA12: 0 | DB12: 1
A13: =Koyun!A13 -> 0 | B13: =Koyun!B13 -> 0 | C13: =Koyun!C13 -> 0 | D13: =Koyun!D13 -> 0 | E13: =Koyun!E13 -> 0 | F13: =Koyun!F13 -> 0 | G13: Kaba Yem,% | K13: =IF(Y32=0,0,Y32/I4*100) -> 75.22782927 | T13: Hayvanın Tipi | X13: =Koyun!B13 -> 0 | Y13: 0 | Z13: 0 | AA13: 0 | AB13: 0 | AC13: 0 | AD13: 0 | AE13: 0 | AF13: 0 | AG13: 0 | AH13: 0 | AI13: 0 | BA13: Koyun, Erken laktasyon, Üçüz kuzu, 1,5 yaş üzeri | BB13: =- 0.000012*CA^2 + 0.0237*CA + 0.6816 -> 1.8366 | BC13: =-0.000097*CA^2 + 0.0616*CA + 1.6305 -> 4.468 | BD13: =-0.0107*CA^2 + 5.0597*CA + 81.008 -> 307.243 | BE13: =-0.0099*CA^2 + 4.786*CA + 77.932 -> 292.482 | BF13: =-0.0096*CA^2 + 4.6088*CA + 73.543 -> 279.983 | BG13: =-0.00715*CA^2+ 3.4111*CA + 53.242 -> 205.922 | BH13: =-0.0035*CA^2+ 2.2141*CA + 59.119 -> 161.074 | BI13: =-0.000389*CA^2 + 0.1486*CA + 1.7643 -> 8.2218 | BJ13: =-0.000389*CA^2 + 0.1549*CA + 0.0667 -> 6.8392 | BK13: 1,53-2,87 kg | BY13: 11 | BZ13: Buğday Samanı, Amonyakla muamele | CA13: 85 | CB13: 1.8 | CC13: 9 | CD13: 6.3 | CE13: 5.1 | CF13: 2.3 | CG13: 0.15 | CH13: 0.05 | CI13: 40 | CJ13: 76 | CK13: 50 | CL13: 2.2 | CM13: 1.1 | CN13: 0.3 | CO13: 1.1 | CP13: 55 | CQ13: 98 | CR13: 1.5 | CS13: 9 | CT13: 1.3 | CU13: 0.3 | CV13: 0.16 | CW13: 6 | CZ13: 1.5 | DA13: 0 | DB13: 1 | DD13: Mermer Tozu
A14: =Koyun!A14 -> 0 | B14: =Koyun!B14 -> 0 | C14: =Koyun!C14 -> 0 | D14: =Koyun!D14 -> 0 | E14: =Koyun!E14 -> 0 | F14: =Koyun!F14 -> 0 | G14: HS,% | K14: =AH32/Z32*100 -> 33.69749322 | T14: Koyun | X14: =Koyun!B14 -> 0 | Y14: 0 | Z14: 0 | AA14: 0 | AB14: 0 | AC14: 0 | AD14: 0 | AE14: 0 | AF14: 0 | AG14: 0 | AH14: 0 | AI14: 0 | BA14: Koyun, Erken laktasyon, Sağmal, 1,5 yaş üzeri | BB14: =- 0.0000022165*CA^3 + 0.0007*CA^2 - 0.0398*CA + 2.4142 -> 1.8971375 | BC14: =-0.000105*CA^2 + 0.0706*CA + 2.2716 -> 5.5391 | BD14: =-0.0015*CA^2 + 4.2283*CA + 183.76 -> 391.425 | BE14: =-0.00275*CA^2 + 4.2722*CA + 167.11 -> 373.845 | BF14: =-0.00185*CA^2 + 3.8548*CA + 171.38 -> 359.495 | BG14: =-0.00163*CA^2 + 2.8892*CA + 124.05 -> 264.435 | BH14: =-0.003895*CA^2 + 2.5623*CA + 81.178 -> 199.5555 | BI14: =-0.000029*CA^2 + 0.1056*CA + 5.2414 -> 10.4489 | BJ14: =0.000105*CA^2 + 0.0831*CA + 4.1467 -> 8.5642 | BK14: 2,37-3,97 kg | BY14: 12 | BZ14: Çavdar Samanı | CA14: 89 | CB14: 1.6 | CC14: 4 | CD14: 2.8 | CE14: 0.6 | CG14: 0.24 | CH14: 0.09 | CI14: 44 | CJ14: 71 | CK14: 44 | CL14: 1.9 | CM14: 1 | CN14: 0 | CO14: 0.9 | CP14: 55 | CQ14: 100 | CR14: 1.5 | CS14: 6 | CT14: 1 | CU14: 0.24 | CV14: 0.11 | CZ14: 2 | DA14: 0 | DB14: 1
A15: =Koyun!A15 -> 0 | B15: =Koyun!B15 -> 0 | C15: =Koyun!C15 -> 0 | D15: =Koyun!D15 -> 0 | E15: =Koyun!E15 -> 0 | F15: =Koyun!F15 -> 0 | G15: NDF,% | K15: =AI32/Z32*100 -> 64.11756807 | T15: Koç | X15: =Koyun!B15 -> 0 | Y15: 0 | Z15: =IF($X15=0,0,VLOOKUP($B15,$BZ$3:$DB$533,Z$1,FALSE)) -> 0 | AA15: 0 | AB15: 0 | AC15: 0 | AD15: 0 | AE15: 0 | AF15: 0 | AG15: 0 | AH15: 0 | AI15: 0 | BA15: Koyun, Orta laktasyon, Tek kuzu, 1,5 yaş üzeri | BB15: =-0.00003*CA^2 + 0.0211*CA + 0.4155 -> 1.3955 | BC15: =-0.00006*CA^2 + 0.0406*CA + 0.7967 -> 2.6767 | BD15: =-0.0031*CA^2+ 2.1361*CA + 54.425 -> 153.48 | BE15: =-0.0027*CA^2 + 2.004*CA + 53.087 -> 146.537 | BF15: =-0.00246*CA^2+ 1.8921*CA + 52.087 -> 140.542 | BG15: =-0.00196*CA^2 + 1.4185*CA + 37.397 -> 103.422 | BH15: =-0.00199*CA^2 + 1.447*CA + 28.79 -> 96.165 | BI15: =-0.00006*CA^2+ 0.0434*CA + 1.8799 -> 3.8999 | BJ15: =-0.000079*CA^2+ 0.0521*CA + 1.1571 -> 3.5646 | BK15: 0,47-0,89 kg | BY15: 13 | BZ15: Çayır Kelp Kuyruğu (Timothy) Kuru Otu, Çiçek Başı | CA15: 88 | CB15: 2.1 | CC15: 11 | CD15: 7.7 | CE15: 6.9 | CF15: 2.4 | CG15: 0.58 | CH15: 0.26 | CI15: 32 | CJ15: 63 | CK15: 59 | CL15: 2.6 | CM15: 1.3 | CN15: 0.6 | CO15: 1.3 | CP15: 39 | CQ15: 98 | CR15: 2.7 | CS15: 6 | CT15: 1.9 | CU15: 0.51 | CV15: 0.21 | CW15: 30 | CX15: 5.6 | CY15: 38 | CZ15: 3 | DA15: 0 | DB15: 1
A16: =Koyun!A16 -> 0 | B16: =Koyun!B16 -> 0 | C16: =Koyun!C16 -> 0 | D16: =Koyun!D16 -> 0 | E16: =Koyun!E16 -> 0 | F16: =Koyun!F16 -> 0 | T16: Dişi Kuzu | X16: =Koyun!B16 -> 0 | Y16: 0 | Z16: 0 | AA16: 0 | AB16: 0 | AC16: 0 | AD16: 0 | AE16: 0 | AF16: 0 | AG16: 0 | AH16: 0 | AI16: 0 | BA16: Koyun, Orta laktasyon, İkiz kuzu, 1,5 yaş üzeri | BB16: =-0.000038*CA^2 + 0.0251*CA + 0.5617 -> 1.7217 | BC16: =-0.000075*CA^2 + 0.0483*CA + 1.0611 -> 3.2886 | BD16: =-0.0043*CA^2 + 2.7931*CA + 81.753 -> 210.658 | BE16: =-0.004283*CA^2 + 2.6979*CA + 76.694 -> 200.8815 | BF16: =-0.0039*CA^2 + 2.5395*CA + 75.183 -> 192.408 | BG16: =-0.003*CA^2 + 1.8922*CA + 54.452 -> 141.562 | BH16: =-0.00251*CA^2+ 1.7133*CA + 39.1 -> 118.49 | BI16: =-0.000117*CA^2 + 0.0651*CA + 2.4795 -> 5.442 | BJ16: =-0.0001352*CA^2 + 0.0731*CA + 1.6023 -> 4.9193 | BK16: 0,79-1,48 kg | BY16: 14 | BZ16: Çayır Kelp Kuyruğu (Timothy) Kuru Otu, Tam Çiçeklenme | CA16: 88 | CB16: 2.1 | CC16: 8 | CD16: 5.6 | CE16: 4.2 | CF16: 2.4 | CG16: 0.43 | CH16: 0.2 | CI16: 34 | CJ16: 65 | CK16: 57 | CL16: 2.5 | CM16: 1.3 | CN16: 0.6 | CO16: 1.3 | CP16: 40 | CQ16: 98 | CR16: 2.6 | CS16: 5 | CT16: 1.8 | CU16: 0.62 | CV16: 0.13 | CW16: 25 | CZ16: 11 | DA16: 0 | DB16: 1
A17: =Koyun!A17 -> 0 | B17: =Koyun!B17 -> 0 | C17: =Koyun!C17 -> 0 | D17: =Koyun!D17 -> 0 | E17: =Koyun!E17 -> 0 | F17: =Koyun!F17 -> 0 | T17: Erkek Kuzu | X17: =Koyun!B17 -> 0 | Y17: 0 | Z17: 0 | AA17: 0 | AB17: 0 | AC17: 0 | AD17: 0 | AE17: 0 | AF17: 0 | AG17: 0 | AH17: 0 | AI17: 0 | BA17: Koyun, Orta laktasyon, Üçüz kuzu, 1,5 yaş üzeri | BB17: =-0.000038*CA^2 + 0.0267*CA + 0.7316 -> 1.9716 | BC17: =-0.000079*CA^2 + 0.0528*CA + 1.3049 -> 3.7474 | BD17: =-0.0046*CA^2 + 3.1396*CA + 109.25 -> 254.73 | BE17: =-0.0069*CA^2+ 3.5337*CA + 78.018 -> 237.453 | BF17: =-0.0068*CA^2 + 3.403*CA + 74.142 -> 227.292 | BG17: =-0.0048*CA^2 + 2.4757*CA + 55.32 -> 167.105 | BH17: =-0.00287*CA^2 + 1.9033*CA + 47.397 -> 135.387 | BI17: =-0.000195*CA^2 + 0.0906*CA + 2.3808 -> 6.4233 | BJ17: =-0.000254*CA^2 + 0.1051*CA + 1.0922 -> 5.7122 | BK17: 1,03-1,92 kg | BY17: 15 | BZ17: Çayır Kuru Otu | CA17: 88 | CB17: 2.1 | CC17: 10 | CD17: 7 | CE17: 6 | CF17: 3 | CG17: 0.6 | CH17: 0.21 | CI17: 33 | CJ17: 63 | CK17: 58 | CL17: 2.6 | CM17: 1.3 | CN17: 0.6 | CO17: 1.3 | CP17: 41 | CQ17: 98 | CR17: 3 | CS17: 6 | CT17: 2 | CV17: 0.2 | CW17: 28 | CZ17: 11 | DA17: 0 | DB17: 1 | DD17: Tuz
A18: =Koyun!A18 -> 0 | B18: =Koyun!B18 -> 0 | C18: =Koyun!C18 -> 0 | D18: =Koyun!D18 -> 0 | E18: =Koyun!E18 -> 0 | F18: =Koyun!F18 -> 0 | T18: Dişi Toklu | X18: =Koyun!B18 -> 0 | Y18: 0 | Z18: 0 | AA18: 0 | AB18: 0 | AC18: 0 | AD18: 0 | AE18: 0 | AF18: 0 | AG18: 0 | AH18: 0 | AI18: 0 | BA18: Koyun, Orta laktasyon, Sağmal, 1,5 yaş üzeri | BB18: =-0.0002*CA^2 + 0.066*CA - 0.9191 -> 1.8809 | BC18: =-0.000089*CA^2 + 0.0603*CA + 1.7437 -> 4.5362 | BD18: =-0.0102*CA^2 + 4.9702*CA + 82.428 -> 305.438 | BE18: =-0.01006*CA^2 + 4.8267*CA + 73.914 -> 290.099 | BF18: =-0.0096*CA^2 + 4.6158*CA + 70.573 -> 277.363 | BG18: =-0.00726*CA^2 + 3.4229*CA + 51.318 -> 204.313 | BH18: =-0.0033*CA^2+ 2.1917*CA + 62.062 -> 163.397 | BI18: =-0.000313*CA^2 + 0.1341*CA + 1.856 -> 7.7785 | BJ18: =-0.000388*CA^2 + 0.154*CA - 0.1698 -> 6.5602 | BK18: 1,59-2,66 kg | BY18: 16 | BZ18: Çayır Kuru Otu (Meadow) | CA18: 90 | CB18: 1.8 | CC18: 7 | CD18: 4.9 | CE18: 3.3 | CF18: 1.6 | CG18: 0.61 | CH18: 0.18 | CI18: 33 | CJ18: 70 | CK18: 50 | CL18: 2.2 | CM18: 1.1 | CN18: 0.3 | CO18: 1.1 | CP18: 44 | CQ18: 98 | CR18: 2.5 | CS18: 9 | CT18: 1.6 | CV18: 0.17 | CW18: 24 | CZ18: 11 | DA18: 0 | DB18: 1 | DD18: Vitamin-Mineral Karması
A19: =Koyun!A19 -> 0 | B19: =Koyun!B19 -> 0 | C19: =Koyun!C19 -> 0 | D19: =Koyun!D19 -> 0 | E19: =Koyun!E19 -> 0 | F19: =Koyun!F19 -> 0 | X19: =Koyun!B19 -> 0 | Y19: 0 | Z19: 0 | AA19: 0 | AB19: 0 | AC19: 0 | AD19: 0 | AE19: 0 | AF19: 0 | AG19: 0 | AH19: 0 | AI19: 0 | BA19: Koyun, Geç laktasyon, Tek kuzu, 1,5 yaş üzeri | BB19: =-0.000026*CA^2 + 0.0198*CA + 0.339 -> 1.264 | BC19: =-0.000052*CA^2 + 0.0382*CA + 0.6307 -> 2.4107 | BD19: =-0.002*CA^2 + 1.7282*CA + 38.763 -> 120.173 | BE19: =-0.00184*CA^2 + 1.6339*CA + 37.612 -> 114.707 | BF19: =-0.00184*CA^2+ 1.5776*CA + 35.484 -> 109.764 | BG19: =-0.00164*CA^2 + 1.2099*CA + 24.292 -> 80.687 | BH19: =-0.00198*CA^2 + 1.3908*CA + 22.662 -> 87.252 | BI19: =-0.000048*CA^2 + 0.0355*CA + 1.3502 -> 3.0052 | BJ19: =-0.000068*CA^2 + 0.0446*CA + 0.6489 -> 2.7089 | BK19: 0,23-0,45 kg | BY19: 17 | BZ19: Çayır Kuru Otu (Prairie) | CA19: 91 | CB19: 1.8 | CC19: 7 | CD19: 4.9 | CE19: 3.3 | CF19: 2.6 | CG19: 0.4 | CH19: 0.15 | CI19: 34 | CJ19: 67 | CK19: 50 | CL19: 2.2 | CM19: 1.1 | CN19: 0.3 | CO19: 1.1 | CP19: 47 | CQ19: 98 | CR19: 2 | CS19: 8 | CT19: 1.1 | CU19: 0.06 | CV19: 0.06 | CW19: 34 | CX19: 4.8 | CZ19: 11 | DA19: 0 | DB19: 1
A20: =Koyun!A20 -> 0 | B20: =Koyun!B20 -> 0 | C20: =Koyun!C20 -> 0 | D20: =Koyun!D20 -> 0 | E20: =Koyun!E20 -> 0 | F20: =Koyun!F20 -> 0 | T20: Fizyolojik Durumu | X20: =Koyun!B20 -> 0 | Y20: 0 | Z20: 0 | AA20: 0 | AB20: 0 | AC20: 0 | AD20: 0 | AE20: 0 | AF20: 0 | AG20: 0 | AH20: 0 | AI20: 0 | BA20: Koyun, Geç laktasyon, İkiz kuzu, 1,5 yaş üzeri | BB20: =-0.000032*CA^2 + 0.0238*CA + 0.4877 -> 1.5977 | BC20: =-0.000061*CA^2 + 0.0453*CA + 0.9392 -> 3.0517 | BD20: =-0.0029*CA^2 + 2.265*CA + 56.621 -> 162.621 | BE20: =-0.00272*CA^2+ 2.141*CA + 55.301 -> 155.551 | BF20: =-0.00281*CA^2 + 2.0872*CA + 51.543 -> 148.878 | BG20: =-0.00181*CA^2+ 1.4883*CA + 39.858 -> 109.748 | BH20: =-0.00218*CA^2 + 1.6323*CA + 33.731 -> 109.896 | BI20: =-0.000079*CA^2 + 0.0521*CA + 1.7571 -> 4.1646 | BJ20: =-0.00008*CA^2 + 0.0558*CA + 1.1119 -> 3.7019 | BK20: 0,38-0,75 kg | BY20: 18 | BZ20: Çayır Kuru Otu (Rye Grass) | CA20: 90 | CB20: 2.1 | CC20: 10 | CD20: 7 | CE20: 6 | CF20: 3 | CG20: 0.45 | CH20: 0.3 | CI20: 33 | CJ20: 65 | CK20: 58 | CL20: 2.6 | CM20: 1.3 | CN20: 0.6 | CO20: 1.3 | CP20: 38 | CQ20: 98 | CR20: 3.3 | CS20: 8 | CT20: 2.2 | CV20: 0.18 | CW20: 27 | CX20: 24 | CY20: 211 | CZ20: 11 | DA20: 0 | DB20: 1
A21: =Koyun!A21 -> 0 | B21: =Koyun!B21 -> 0 | C21: =Koyun!C21 -> 0 | D21: =Koyun!D21 -> 0 | E21: =Koyun!E21 -> 0 | F21: =Koyun!F21 -> 0 | J21: Hayvanın | T21: Yaşama Payı | X21: =Koyun!B21 -> 0 | Y21: 0 | Z21: 0 | AA21: 0 | AB21: 0 | AC21: 0 | AD21: 0 | AE21: 0 | AF21: 0 | AG21: 0 | AH21: 0 | AI21: 0 | BA21: Koyun, Geç laktasyon, Üçüz kuzu, 1,5 yaş üzeri | BB21: =-0.000042*CA^2 + 0.0275*CA + 0.5616 -> 1.8316 | BC21: =-0.000077*CA^2 + 0.0518*CA + 1.1179 -> 3.5154 | BD21: =-0.0042*CA^2 + 2.7656*CA + 65.861 -> 193.641 | BE21: =-0.00383*CA^2 + 2.5932*CA + 65.292 -> 185.377 | BF21: =-0.0037*CA^2 + 2.4934*CA + 61.872 -> 177.292 | BG21: =-0.00247*CA^2 + 1.7885*CA + 47.247 -> 130.497 | BH21: =-0.00267*CA^2+ 1.8594*CA + 40.072 -> 126.367 | BI21: =-0.000112*CA^2+ 0.0652*CA + 2.0603 -> 5.0403 | BJ21: =-0.0001*CA^2 + 0.0652*CA + 1.4184 -> 4.4284 | BK21: 0,55-0,97 kg | BY21: 19 | BZ21: Çayır Salkım Otu (Bluegrass) Samanı | CA21: 93 | CB21: 1.6 | CC21: 6 | CD21: 4.2 | CE21: 2.4 | CG21: 0.2 | CH21: 0.1 | CI21: 40 | CJ21: 78 | CK21: 45 | CL21: 2 | CM21: 1 | CN21: 0.1 | CO21: 1 | CP21: 50 | CQ21: 90 | CR21: 1.1 | CS21: 6 | CZ21: 11 | DA21: 0 | DB21: 1
A22: =Koyun!A22 -> 0 | B22: =Koyun!B22 -> 0 | C22: =Koyun!C22 -> 0 | D22: =Koyun!D22 -> 0 | E22: =Koyun!E22 -> 0 | F22: =Koyun!F23 -> 0 | G22: BESİN MAD. | H22: İHTİYAÇLAR | J22: Hayvanın Tipi : | L22: Koyun | T22: Flaşing | X22: =Koyun!B22 -> 0 | Y22: 0 | Z22: 0 | AA22: 0 | AB22: 0 | AC22: 0 | AD22: 0 | AE22: 0 | AF22: 0 | AG22: 0 | AH22: 0 | AI22: 0 | BA22: Koyun, Geç laktasyon, Sağmal, 1,5 yaş üzeri | BB22: =-0.000033*CA^2 + 0.0279*CA + 0.795 -> 2.1075 | BC22: =-0.000065*CA^2 + 0.0536*CA + 1.5028 -> 4.0203 | BD22: =-0.0034*CA^2 + 2.919*CA + 97.878 -> 235.328 | BE22: =-0.00313*CA^2 + 2.7646*CA + 94.321 -> 224.726 | BF22: =-0.00307*CA^2+ 2.6631*CA + 89.162 -> 214.642 | BG22: =-0.00221*CA^2 + 1.9505*CA + 66.128 -> 158.128 | BH22: =-0.00213*CA^2 + 1.8876*CA + 56.438 -> 145.493 | BI22: =-0.000102*CA^2+ 0.0721*CA + 2.8027 -> 6.1527 | BJ22: =-0.000111*CA^2 + 0.0749*CA + 1.9025 -> 5.37 | BK22: 0,85-1,35 kg | BY22: 20 | BZ22: Çayır Üçgülü (Clover Red) Kuru Otu | CA22: 88 | CB22: 2 | CC22: 15 | CD22: 10.5 | CE22: 10.5 | CF22: 4.2 | CG22: 1.5 | CH22: 0.25 | CI22: 30 | CJ22: 51 | CK22: 55 | CL22: 2.4 | CM22: 1.2 | CN22: 0.5 | CO22: 1.2 | CP22: 39 | CQ22: 92 | CR22: 2.5 | CS22: 8 | CT22: 1.7 | CU22: 0.32 | CV22: 0.17 | CW22: 17 | CX22: 4 | CZ22: 2 | DA22: 0 | DB22: 1
A23: =Koyun!A23 -> 0 | B23: =Koyun!B23 -> 0 | C23: =Koyun!C23 -> 0 | D23: =Koyun!D23 -> 0 | E23: =Koyun!E23 -> 0 | F23: =Koyun!F24 -> 0 | G23: Kuru Madde, kg | H23: =VLOOKUP(Koyun,KoyunReqs,2,FALSE) -> 1.00415 | J23: Fizyolojik Durumu : | L23: Flaşing | T23: Erken Gebe | X23: =Koyun!B23 -> 0 | Y23: 0 | Z23: 0 | AA23: 0 | AB23: 0 | AC23: 0 | AD23: 0 | AE23: 0 | AF23: 0 | AG23: 0 | AH23: 0 | AI23: 0 | BA23: Koyun, Erken laktasyon, Tek kuzu, 1 yaşında | BB23: =-0.000044*CA^2 + 0.0251*CA + 0.4798 -> 1.6248 | BC23: =-0.0000795*CA^2 + 0.0478*CA + 0.9192 -> 3.11045 | BD23: =-0.0041*CA^2 + 2.5701*CA + 71.022 -> 189.277 | BE23: =-0.0045*CA^2 + 2.542*CA + 64.703 -> 180.553 | BF23: =-0.00406*CA^2 + 2.3961*CA + 62.821 -> 172.476 | BG23: =-0.002825*CA^2 + 1.7364*CA + 47.311 -> 127.0685 | BH23: =-0.0029*CA^2+ 1.7327*CA + 32.65 -> 112.035 | BI23: =-0.000096*CA^2 + 0.0588*CA + 2.3104 -> 5.0104 | BJ23: =-0.000126*CA^2 + 0.0676*CA + 1.5059 -> 4.5709 | BK23: 0,71-1,22 kg | BY23: 21 | BZ23: Domuz Ayrığı (Orchardgrass) Kuru Otu | CA23: 88 | CB23: 2.1 | CC23: 10 | CD23: 7 | CE23: 6 | CF23: 2.7 | CG23: 0.32 | CH23: 0.3 | CI23: 34 | CJ23: 67 | CK23: 59 | CL23: 2.6 | CM23: 1.3 | CN23: 0.6 | CO23: 1.3 | CP23: 40 | CQ23: 98 | CR23: 3.3 | CS23: 8 | CT23: 2.6 | CU23: 0.41 | CV23: 0.2 | CW23: 26 | CX23: 4.4 | CY23: 191 | CZ23: 11 | DA23: 0 | DB23: 1
A24: =Koyun!A24 -> 0 | B24: =Koyun!B24 -> 0 | C24: =Koyun!C24 -> 0 | D24: =Koyun!D24 -> 0 | E24: =Koyun!E24 -> 0 | F24: =Koyun!F25 -> 0 | G24: Metabolik Enerji, Mcal | H24: =VLOOKUP(Koyun,KoyunReqs,3,FALSE) -> 1.92265 | J24: Yavru Sayısı : | T24: Geç Gebe | X24: =Koyun!B24 -> 0 | Y24: 0 | Z24: 0 | AA24: 0 | AB24: 0 | AC24: 0 | AD24: 0 | AE24: 0 | AF24: 0 | AG24: 0 | AH24: 0 | AI24: 0 | BA24: Koyun, Erken laktasyon, İkiz kuzu, 1 yaşında | BB24: =- 0.000041*CA^2 + 0.0283*CA + 0.7695 -> 2.082 | BC24: =-0.0000943*CA^2 + 0.0575*CA + 1.3024 -> 3.94165 | BD24: =-0.01092*CA^2 + 4.4769*CA + 62.653 -> 259.198 | BE24: =-0.01065*CA^2 + 4.3117*CA + 58.426 -> 247.386 | BF24: =-0.01007*CA^2+ 4.0954*CA + 57.003 -> 236.598 | BG24: =-0.00754*CA^2 + 3.0355*CA + 41.37 -> 174.295 | BH24: =-0.00353*CA^2 + 2.08*CA + 47.162 -> 142.337 | BI24: =-0.000348*CA^2 + 0.1238*CA + 1.5877 -> 6.9077 | BJ24: =-0.000412*CA^2 + 0.1381*CA + 0.1964 -> 6.0714 | BK24: 1,18-2,05 kg | BY24: 22 | BZ24: Fiğ Kuru Otu | CA24: 89 | CB24: 2.1 | CC24: 18 | CD24: 12.6 | CE24: 13.2 | CF24: 2.5 | CG24: 1.25 | CH24: 0.34 | CI24: 30 | CJ24: 48 | CK24: 58 | CL24: 2.6 | CM24: 1.3 | CN24: 0.6 | CO24: 1.3 | CP24: 33 | CQ24: 92 | CR24: 1.8 | CS24: 8 | CT24: 2.4 | CV24: 0.13 | CX24: 92.2 | CZ24: 11 | DA24: 0 | DB24: 1
A25: =Koyun!A25 -> 0 | B25: =Koyun!B25 -> 0 | C25: =Koyun!C25 -> 0 | D25: =Koyun!D25 -> 0 | E25: =Koyun!E25 -> 0 | F25: =Koyun!F26 -> 0 | G25: Ham Protein, g | H25: =(VLOOKUP(Koyun,KoyunReqs,4,FALSE)+VLOOKUP(Koyun,KoyunReqs,5,FALSE))/2 -> 79.146 | J25: Yaşı : | T25: Erken Laktasyon | X25: =Koyun!B25 -> 0 | Y25: 0 | Z25: =IF($X25=0,0,VLOOKUP($B25,$BZ$3:$DB$533,Z$1,FALSE)) -> 0 | AA25: 0 | AB25: 0 | AC25: 0 | AD25: 0 | AE25: 0 | AF25: 0 | AG25: 0 | AH25: 0 | AI25: 0 | BA25: Koyun, Erken laktasyon, Üçüz kuzu, 1 yaşında | BB25: =- 0.000034*CA^2 + 0.0291*CA + 1.0797 -> 2.4497 | BC25: =-0.000116*CA^2 + 0.0658*CA + 1.5738 -> 4.5738 | BD25: =-0.0134*CA^2+ 5.5117*CA + 66.568 -> 308.653 | BE25: =-0.01273*CA^2 + 5.2552*CA + 63.642 -> 294.577 | BF25: =-0.01*CA^2 + 4.6985*CA + 70.583 -> 280.508 | BG25: =-0.0075*CA^2 + 3.4774*CA + 51.381 -> 206.501 | BH25: =-0.00437*CA^2 + 2.4003*CA + 55.734 -> 164.824 | BI25: =-0.00037*CA^2 + 0.1469*CA + 1.7669 -> 8.1869 | BJ25: =-0.000398*CA^2+ 0.1573*CA + 0.0328 -> 6.9028 | BK25: 1,53-2,66 kg | BY25: 23 | BZ25: Kamışsı Yumak Kuru Otu, Olgun | CA25: 88 | CB25: 1.9 | CC25: 11 | CD25: 7.7 | CE25: 6.9 | CF25: 3.3 | CG25: 0.45 | CH25: 0.26 | CI25: 30 | CJ25: 73 | CK25: 52 | CL25: 2.3 | CM25: 1.1 | CN25: 0.4 | CO25: 1.1 | CP25: 42 | CQ25: 98 | CR25: 5 | CS25: 6 | CT25: 1.7 | CV25: 0.14 | CW25: 22 | CZ25: 6 | DA25: 0 | DB25: 1
A26: =Koyun!A26 -> 0 | B26: =Koyun!B26 -> 0 | C26: =Koyun!C26 -> 0 | D26: =Koyun!D26 -> 0 | E26: =Koyun!E26 -> 0 | F26: =Koyun!F22 -> 0 | G26: Metabolik Protein,g | I26: MP | J26: Canlı Ağırlık : | L26: 50 | M26: kg | T26: Orta Laktasyon | X26: =Koyun!B26 -> 0 | Y26: 0 | Z26: 0 | AA26: 0 | AB26: 0 | AC26: 0 | AD26: 0 | AE26: 0 | AF26: 0 | AG26: 0 | AH26: 0 | AI26: 0 | BA26: Koyun, Erken laktasyon, Sağmal, 1 yaşında | BB26: =-0.00019*CA^2 + 0.05841*CA - 0.4419 -> 2.0036 | BC26: =-0.00012*CA^2 + 0.07309*CA + 2.2753 -> 5.6298 | BD26: =-0.01263*CA^2+ 5.9008*CA + 125.64 -> 389.105 | BE26: =-0.01186*CA^2+ 5.60171*CA + 121.22 -> 371.6555 | BF26: =-0.01113*CA^2+ 5.32438*CA + 117.17 -> 355.564 | BG26: =-0.00862*CA^2+ 3.99397*CA + 83.325 -> 261.4735 | BH26: =-0.00455*CA^2+ 2.66611*CA + 77.437 -> 199.3675 | BI26: =-0.000398*CA^2+ 0.16404*CA + 3.1793 -> 10.3863 | BJ26: =-0.00045*CA^2+ 0.17044*CA + 1.0434 -> 8.4404 | BK26: 2,35-4,10 kg | BY26: 24 | BZ26: Kamışsı Yumak Samanı | CA26: 94 | CB26: 1.6 | CC26: 4 | CD26: 2.8 | CE26: 0.6 | CG26: 0 | CH26: 0.06 | CI26: 41 | CK26: 43 | CL26: 1.9 | CM26: 1 | CN26: 0 | CO26: 0.9 | CR26: 1.1 | CS26: 6 | CZ26: 10 | DA26: 0 | DB26: 1
A27: =Koyun!A27 -> 0 | B27: =Koyun!B27 -> 0 | C27: =Koyun!C27 -> 0 | D27: =Koyun!D27 -> 0 | E27: =Koyun!E27 -> 0 | F27: =Koyun!F27 -> 0 | G27: Rumende Yıkılabilir Protein,g | I27: DIP | J27: Canlı Ağırlık Artışı : | M27: g/gün | T27: Geç Laktasyon | X27: =Koyun!B27 -> 0 | Y27: 0 | Z27: 0 | AA27: 0 | AB27: 0 | AC27: 0 | AD27: 0 | AE27: 0 | AF27: 0 | AG27: 0 | AH27: 0 | AI27: 0 | BA27: Koyun, Orta laktasyon, Tek kuzu, 1 yaşında | BB27: =-0.0000365*CA^2 + 0.0228*CA + 0.3996 -> 1.44835 | BC27: =-0.0000709*CA^2 + 0.04406*CA + 0.7423 -> 2.76805 | BD27: =-0.00395*CA^2 + 2.2783*CA + 51.171 -> 155.211 | BE27: =-0.00358*CA^2 + 2.1493*CA + 49.347 -> 147.862 | BF27: =-0.00335*CA^2 + 2.0374*CA + 48.347 -> 141.842 | BG27: =-0.00249*CA^2 + 1.5012*CA + 35.563 -> 104.398 | BH27: =-0.00239*CA^2 + 1.5492*CA + 28.244 -> 99.729 | BI27: =-0.000109*CA^2 + 0.0516*CA + 1.6532 -> 3.9607 | BJ27: =-0.00012*CA^2 + 0.0592*CA + 1.0252 -> 3.6852 | BK27: 0,47-0,82 kg | BY27: 25 | BZ27: Kamışsı Yumak, Yaş, Çiçek Başı | CA27: 88 | CB27: 2.4 | CC27: 18 | CD27: 12.6 | CE27: 13.2 | CF27: 4 | CG27: 0.45 | CH27: 0.37 | CI27: 25 | CJ27: 64 | CK27: 65 | CL27: 2.9 | CM27: 1.5 | CN27: 0.8 | CO27: 1.5 | CP27: 31 | CQ27: 98 | CR27: 6.6 | CS27: 8 | CT27: 2.7 | CV27: 0.24 | CW27: 24 | CZ27: 3 | DA27: 0 | DB27: 1
A28: =Koyun!A28 -> 0 | B28: =Koyun!B28 -> 0 | C28: =Koyun!C28 -> 0 | D28: =Koyun!D28 -> 0 | E28: =Koyun!E28 -> 0 | F28: =Koyun!F28 -> 0 | G28: Rumende Yıkımlanmayan Protein,g | I28: RUP | T28: Erken Erginleşen | X28: =Koyun!B28 -> 0 | Y28: 0 | Z28: 0 | AA28: 0 | AB28: 0 | AC28: 0 | AD28: 0 | AE28: 0 | AF28: 0 | AG28: 0 | AH28: 0 | AI28: 0 | BA28: Koyun, Orta laktasyon, İkiz kuzu, 1 yaşında | BB28: =-0.000043*CA^2 + 0.0264*CA + 0.5573 -> 1.7698 | BC28: =-0.000085*CA^2 + 0.05113*CA + 1.0452 -> 3.3892 | BD28: =-0.0052*CA^2 + 2.93*CA + 78.829 -> 212.329 | BE28: =-0.005*CA^2 + 2.8128*CA + 74.496 -> 202.636 | BF28: =-0.00447*CA^2 + 2.6228*CA + 74.146 -> 194.111 | BG28: =-0.00348*CA^2 + 1.9767*CA + 52.308 -> 142.443 | BH28: =-0.00284*CA^2+ 1.8055*CA + 38.986 -> 122.161 | BI28: =-0.000145*CA^2 + 0.0704*CA + 2.3252 -> 5.4827 | BJ28: =-0.000131*CA^2 + 0.0734*CA + 1.6711 -> 5.0136 | BK28: 0,79-1,37 kg | BY28: 26 | BZ28: Kır Ayrığı (Wheatgrass) Kuru Otu | CA28: 92 | CB28: 2 | CC28: 10 | CD28: 7 | CE28: 6 | CF28: 3.3 | CG28: 0.33 | CH28: 0.2 | CI28: 33 | CJ28: 65 | CK28: 54 | CL28: 2.4 | CM28: 1.2 | CN28: 0.4 | CO28: 1.2 | CP28: 36 | CQ28: 98 | CR28: 2.4 | CS28: 7 | CT28: 2 | CW28: 32 | CZ28: 11 | DA28: 0 | DB28: 1
A29: =Koyun!A29 -> 0 | B29: =Koyun!B29 -> 0 | C29: =Koyun!C29 -> 0 | D29: =Koyun!D29 -> 0 | E29: =Koyun!E29 -> 0 | F29: =Koyun!F29 -> 0 | G29: Ca, g | H29: =VLOOKUP(Koyun,KoyunReqs,9,FALSE) -> 2.3735 | T29: Geç Erginleşen | X29: =Koyun!B29 -> 0 | Y29: 0 | Z29: 0 | AA29: 0 | AB29: 0 | AC29: 0 | AD29: 0 | AE29: 0 | AF29: 0 | AG29: 0 | AH29: 0 | AI29: 0 | BA29: Koyun, Orta laktasyon, Üçüz kuzu, 1 yaşında | BB29: =- 0.000038*CA^2 + 0.0273*CA + 0.7604 -> 2.0304 | BC29: =-0.0000937*CA^2 + 0.0561*CA + 1.282 -> 3.85275 | BD29: =-0.01055*CA^2+ 4.2796*CA + 58.49 -> 246.095 | BE29: =-0.00967*CA^2+ 4.0187*CA + 58.305 -> 235.065 | BF29: =-0.00958*CA^2 + 3.8962*CA + 53.894 -> 224.754 | BG29: =-0.00682*CA^2 + 2.8402*CA + 40.218 -> 165.178 | BH29: =-0.00323*CA^2 + 2.006*CA + 46.493 -> 138.718 | BI29: =-0.000331*CA^2 + 0.1153*CA + 1.3796 -> 6.3171 | BJ29: =-0.000408*CA^2 + 0.1328*CA - 0.0263 -> 5.5937 | BK29: 1,03-1,78 kg | BY29: 27 | BZ29: Korunga Kuru Otu | CA29: 88 | CB29: 2.2 | CC29: 14 | CD29: 9.8 | CE29: 9.6 | CF29: 8.4 | CI29: 24 | CK29: 61 | CL29: 2.7 | CM29: 1.4 | CN29: 0.7 | CO29: 1.4 | CR29: 3.1 | CS29: 9 | CZ29: 11 | DA29: 0 | DB29: 1
A30: =Koyun!A30 -> 0 | B30: =Koyun!B30 -> 0 | C30: =Koyun!C30 -> 0 | D30: =Koyun!D30 -> 0 | E30: =Koyun!E30 -> 0 | F30: =Koyun!F30 -> 0 | G30: P, g | H30: =VLOOKUP(Koyun,KoyunReqs,10,FALSE) -> 1.8063 | X30: =Koyun!B30 -> 0 | Y30: 0 | Z30: 0 | AA30: 0 | AB30: 0 | AC30: 0 | AD30: 0 | AE30: 0 | AF30: 0 | AG30: 0 | AH30: 0 | AI30: 0 | BA30: Koyun, Orta laktasyon, Sağmal, 1 yaşında | BB30: =-0.00022*CA^2 + 0.06665*CA - 0.7936 -> 1.9889 | BC30: =-0.00008*CA^2 + 0.05923*CA + 1.8688 -> 4.6303 | BD30: =-0.00999*CA^2+ 4.96603*CA + 80.937 -> 304.2635 | BE30: =-0.00939*CA^2+ 4.71945*CA + 78.125 -> 290.6225 | BF30: =-0.00891*CA^2+ 4.50478*CA + 74.798 -> 277.762 | BG30: =-0.00702*CA^2+ 3.38429*CA + 52.851 -> 204.5155 | BH30: =-0.00308*CA^2+ 2.15612*CA + 63.486 -> 163.592 | BI30: =-0.00032*CA^2+ 0.13525*CA + 1.911 -> 7.8735 | BJ30: =-0.00041*CA^2+ 0.15769*CA - 0.218 -> 6.6415 | BK30: 1,59-2,74 kg | BY30: 28 | BZ30: Köpekdişi (Bermudagrass) Kuru Otu | CA30: 89 | CB30: 2 | CC30: 10 | CD30: 7 | CE30: 6 | CF30: 2 | CG30: 0.47 | CH30: 0.21 | CI30: 30 | CJ30: 73 | CK30: 56 | CL30: 2.5 | CM30: 1.2 | CN30: 0.5 | CO30: 1.2 | CP30: 36 | CQ30: 98 | CR30: 2.1 | CS30: 6 | CT30: 1.5 | CV30: 0.22 | CW30: 16 | CX30: 21 | CZ30: 11 | DA30: 0 | DB30: 1
G31: Süt Verimi | H31: =VLOOKUP(Koyun,KoyunReqs,11,FALSE) -> 0 | T31: Yavru sayısı | BA31: Koyun, Geç laktasyon, Tek kuzu, 1 yaşında | BB31: =-0.000032*CA^2 + 0.0316*CA + 0.3345 -> 1.8345 | BC31: =-0.000067*CA^2 + 0.0615*CA + 0.5897 -> 3.4972 | BD31: =-0.00246*CA^2 + 2.7034*CA + 37.062 -> 166.082 | BE31: =-0.0024*CA^2 + 2.5865*CA + 35.003 -> 158.328 | BF31: =-0.00273*CA^2 + 2.544*CA + 31.143 -> 151.518 | BG31: =-0.00196*CA^2 + 1.8669*CA + 23.193 -> 111.638 | BH31: =-0.00193*CA^2 + 2.1406*CA + 24.12 -> 126.325 | BI31: =-0.000039*CA^2 + 0.0603*CA + 1.5261 -> 4.4436 | BJ31: =-0.000049*CA^2 + 0.0506*CA + 0.5289 -> 2.9364 | BK31: 0,23-0,41 kg | BY31: 29 | BZ31: Köpekdişi (Bermudagrass) Kuru Otu | CA31: 89 | CB31: 1.9 | CC31: 10 | CD31: 7 | CE31: 6 | CF31: 1.8 | CG31: 0.46 | CH31: 0.2 | CI31: 30 | CJ31: 78 | CK31: 53 | CL31: 2.3 | CM31: 1.2 | CN31: 0.4 | CO31: 1.2 | CP31: 39 | CQ31: 98 | CR31: 1.9 | CS31: 8 | CT31: 1.5 | CV31: 0.25 | CW31: 33 | CX31: 11.6 | CZ31: 11 | DA31: 0 | DB31: 1
G32: VitE,IU | H32: =VLOOKUP(Koyun,KoyunReqs,12,FALSE) -> 0 | T32: Tek Kuzu | X32: TOPLAM | Y32: =SUM(Y35:Y60) -> 0.7705082528 | Z32: =SUM(Z35:Z60) -> 1.024233 | AA32: 1.90534615 | AB32: 78.43368605 | AC32: 54.88106715 | AD32: 60.62879438 | AE32: 49.00028149 | AF32: 3.347325999 | AG32: 2.54740887 | AH32: 0.3451408459 | AI32: 0.6567132913 | BA32: Koyun, Geç laktasyon, İkiz kuzu, 1 yaşında | BB32: =(-0.000032*CA^2 + 0.0316*CA + 0.3345)*1.15 -> 2.109675 | BC32: =-0.000072*CA^2 + 0.0683*CA + 0.9029 -> 4.1379 | BD32: =-0.00715*CA^2 + 4.0195*CA + 15.864 -> 198.964 | BE32: =-0.006*CA^2 + 3.7455*CA + 15.639 -> 187.914 | BF32: =-0.006*CA^2 + 3.6192*CA + 13.566 -> 179.526 | BG32: =-0.004373*CA^2 + 2.6582*CA + 10.213 -> 132.1905 | BH32: =-0.0027*CA^2 + 2.4701*CA + 32.451 -> 149.206 | BI32: =-0.000227*CA^2 + 0.11*CA + 0.2014 -> 5.1339 | BJ32: =-0.000199*CA^2 + 0.0886*CA - 0.5504 -> 3.3821 | BK32: 0,38-0,69 kg | BY32: 30 | BZ32: Köpekdişi (Bermudagrass), Kuru Otu, Kaliteli | CA32: 90 | CB32: 2.2 | CC32: 16 | CD32: 11.2 | CE32: 11.4 | CF32: 6.4 | CG32: 0.4 | CH32: 0.25 | CI32: 26 | CJ32: 40 | CK32: 62 | CL32: 2.7 | CM32: 1.4 | CN32: 0.7 | CO32: 1.4 | CP32: 29 | CQ32: 10 | CR32: 3.8 | CS32: 7 | CT32: 1.8 | CV32: 0.23 | CW32: 18 | CZ32: 11 | DA32: 0 | DB32: 1
G33: Na,g | H33: =VLOOKUP(Koyun,KoyunReqs,13,FALSE) -> 0 | T33: İkiz Kuzu | X33: HESAPLAMALAR | Y33: KabaY | Z33: KM | AA33: ME | AB33: HP | AC33: MP | AD33: DIP | AE33: RUP | AF33: Ca | AG33: P | AH33: HS | AI33: NDF | BA33: Koyun, Geç laktasyon, Üçüz kuzu, 1 yaşında | BB33: =0.00039*CA^2 - 0.03*CA + 2.5 -> 1.975 | BC33: =-0.000078*CA^2 + 0.0732*CA + 1.1359 -> 4.6009 | BD33: =0.0105*CA^2 + 1.3002*CA + 135.37 -> 226.63 | BE33: =0.00985*CA^2 + 1.2773*CA + 127.79 -> 216.28 | BF33: =0.00902*CA^2 + 1.2906*CA + 119.38 -> 206.46 | BG33: =0.006895*CA^2+ 0.9033*CA + 90.032 -> 152.4345 | BH33: =-0.00267*CA^2 + 2.6133*CA + 41.972 -> 165.962 | BI33: =0.000408*CA^2 + 0.0083*CA + 4.5108 -> 5.9458 | BJ33: =0.000448*CA^2 - 0.0166*CA + 3.7296 -> 4.0196 | BK33: 0,55-0,90 kg | BY33: 31 | BZ33: Kudzu Kuru Otu | CA33: 90 | CB33: 2 | CC33: 16 | CD33: 11.2 | CE33: 11.4 | CG33: 3 | CH33: 0.23 | CI33: 33 | CK33: 54 | CL33: 2.4 | CM33: 1.2 | CN33: 0.4 | CO33: 1.2 | CR33: 2.6 | CS33: 7 | CZ33: 11 | DA33: 0 | DB33: 1
G34: Cl,g | H34: =VLOOKUP(Koyun,KoyunReqs,14,FALSE) -> 0 | T34: Üçüz Kuzu | BA34: Koyun, Geç laktasyon, Sağmal, 1 yaşında | BB34: =-0.00004*CA^2 + 0.02888*CA + 0.8624 -> 2.2064 | BC34: =-0.00008*CA^2 + 0.05598*CA + 1.5136 -> 4.1126 | BD34: =-0.00357*CA^2+ 2.94844*CA + 96.771 -> 235.268 | BE34: =-0.00321*CA^2+ 2.77818*CA + 93.85 -> 224.734 | BF34: =-0.00357*CA^2+ 2.74845*CA + 85.771 -> 214.2685 | BG34: =-0.00262*CA^2+ 2.02044*CA + 63.36 -> 157.832 | BH34: =-0.00239*CA^2+ 1.93085*CA + 54.81 -> 145.3775 | BI34: =-0.000084*CA^2+ 0.06907*CA + 3.0283 -> 6.2718 | BJ34: =-0.0001*CA^2+ 0.07257*CA + 2.1167 -> 5.4952 | BK34: 0,87-1,39 kg | BY34: 32 | BZ34: Mısır Bitkisi, Peletlenmiş | CA34: 91 | CB34: 2.3 | CC34: 9 | CD34: 6.3 | CE34: 5.1 | CF34: 4.1 | CG34: 0.5 | CH34: 0.24 | CI34: 21 | CJ34: 40 | CK34: 63 | CL34: 2.8 | CM34: 1.4 | CN34: 0.7 | CO34: 1.4 | CP34: 24 | CQ34: 6 | CR34: 2.4 | CS34: 6 | CT34: 0.9 | CV34: 0.14 | CZ34: 20 | DA34: 0 | DB34: 1
G35: K,g | H35: =VLOOKUP(Koyun,KoyunReqs,15,FALSE) -> 0 | T35: Sağmal | X35: =X5 -> Arpa Samanı | Y35: =IF(X5=0,0,IF(OR(A5=1,A5=2,A5=3)=TRUE,Z35,0)) -> 0.7705082528 | Z35: =IF($X5=0,0,IF(ISERROR(Y5*Z5/100)=TRUE,0,Y5*Z5/100)) -> 0.7705082528 | AA35: =IF($X5=0,0,IF(ISERROR(Z35*AA5)=TRUE,0,Z35*AA5)) -> 1.232813205 | AB35: =IF($X5=0,0,IF(ISERROR(Z35*AB5*10)=TRUE,0,Z35*AB5*10)) -> 30.82033011 | AC35: =IF($X5=0,0,IF(ISERROR(Z35*AC5*10)=TRUE,0,Z35*AC5*10)) -> 21.57423108 | AD35: =IF($X5=0,0,IF(ISERROR(Z35*AD5*10)=TRUE,0,Z35*AD5*10)) -> 4.623049517 | AE35: =IF($X5=0,0,IF(ISERROR(Z35*AE5*10)=TRUE,0,Z35*AE5*10)) -> 21.57423108 | AF35: =IF($X5=0,0,IF(ISERROR(Z35*AF5*10)=TRUE,0,Z35*AF5*10)) -> 2.542677234 | AG35: =IF($X5=0,0,IF(ISERROR(Z35*AG5*10)=TRUE,0,Z35*AG5*10)) -> 0.6164066023 | AH35: =IF($X5=0,0,IF(ISERROR(Z35*AH5/100)=TRUE,0,Z35*AH5/100)) -> 0.3236134662 | AI35: =IF($X5=0,0,IF(ISERROR(Z35*AI5/100)=TRUE,0,Z35*AI5/100)) -> 0.6009964372 | BA35: Koç, Yaşama payı, , | BB35: =-0.0000095*CA^2 + 0.015*CA + 0.363 -> 1.08925 | BC35: =-0.0000195*CA^2 + 0.0289*CA + 0.689 -> 2.08525 | BD35: =-0.00043*CA^2 + 1.0502*CA + 27.4 -> 78.835 | BE35: =-0.00072*CA^2+ 1.0996*CA + 19.2 -> 72.38 | BF35: =-0.000435*CA^2 + 0.9702*CA + 24.4 -> 71.8225 | BG35: =-0.000365*CA^2 + 0.7298*CA + 16.6 -> 52.1775 | BH35: =-0.00062*CA^2 + 1.0151*CA + 26.7 -> 75.905 | BI35: =-0.0000184*CA^2 + 0.0245*CA + 1.03 -> 2.209 | BJ35: =-0.0000365*CA^2 + 0.033*CA + 0.16 -> 1.71875 | BY35: 33 | BZ35: Mısır Kuru Otu | CA35: 80 | CB35: 2.4 | CC35: 9 | CD35: 6.3 | CE35: 5.1 | CF35: 4.1 | CG35: 0.5 | CH35: 0.25 | CI35: 25 | CJ35: 48 | CK35: 67 | CL35: 3 | CM35: 1.5 | CN35: 0.9 | CO35: 1.5 | CP35: 29 | CQ35: 100 | CR35: 2.4 | CS35: 7 | CT35: 0.9 | CU35: 0.2 | CV35: 0.14 | CX35: 526.4 | CZ35: 2 | DA35: 0 | DB35: 1
G36: Mg,g | H36: =VLOOKUP(Koyun,KoyunReqs,16,FALSE) -> 0 | X36: Yonca Kuru Otu, Olgun | Y36: 0 | Z36: 0 | AA36: 0 | AB36: 0 | AC36: 0 | AD36: 0 | AE36: 0 | AF36: 0 | AG36: 0 | AH36: 0 | AI36: 0 | BA36: Koç, Flaşing, , | BB36: =-0.000012*CA^2 + 0.0167*CA + 0.396 -> 1.201 | BC36: =-0.000021*CA^2 + 0.0317*CA + 0.762 -> 2.2945 | BD36: =-0.0007*CA^2+ 1.2955*CA + 27.5 -> 90.525 | BE36: =-0.00061*CA^2+ 1.2151*CA + 28.7 -> 87.93 | BF36: =-0.00062*CA^2 + 1.1751*CA + 25.7 -> 82.905 | BG36: =-0.000545*CA^2+ 0.8947*CA + 16.9 -> 60.2725 | BH36: =-0.000875*CA^2 + 1.1804*CA + 24.8 -> 81.6325 | BI36: =-0.0000255*CA^2+ 0.0285*CA + 1.01 -> 2.37125 | BJ36: =-0.0000255*CA^2 + 0.0325*CA + 0.41 -> 1.97125 | BY36: 34 | BZ36: Mısır Sapları | CA36: 80 | CB36: 2.1 | CC36: 5 | CD36: 3.5 | CE36: 1.5 | CF36: 1.5 | CG36: 0.35 | CH36: 0.19 | CI36: 35 | CJ36: 70 | CK36: 59 | CL36: 2.6 | CM36: 1.3 | CN36: 0.6 | CO36: 1.3 | CP36: 44 | CQ36: 100 | CR36: 1.3 | CS36: 7 | CT36: 1.1 | CU36: 0.3 | CV36: 0.14 | CW36: 22 | CZ36: 2 | DA36: 0 | DB36: 1
G37: S,g | H37: =VLOOKUP(Koyun,KoyunReqs,17,FALSE) -> 0 | T37: Yaşı, Koyun+Yaşama Payı | X37: Arpa, Tane | Y37: 0 | Z37: 0.1378774897 | AA37: 0.413632469 | AB37: 16.54529876 | AC37: 11.58170913 | AD37: 10.75444419 | AE37: 4.687834649 | AF37: 0.08272649381 | AG37: 0.5239344608 | AH37: 0.006893874484 | AI37: 0.02757549794 | BA37: Dişi Kuzu, Geç Erginleşen, , 4 aylık | BB37: =(0.014+0.0052*CA)+0.0044*GCAA -> 0.274 | BC37: =IF(CA<30,(0.00326*GCAA+0.7667), IF(CA<60,(0.00000016*CA^2 - 0.000009*CA + 0.0058)*GCAA+(-0.0000415*CA^2+0.0128*CA+0.0541), ( 0.000000315*CA^2 - 0.00004*CA + 0.0096)*GCAA+ (-0.0000415*CA^2+0.0128*CA+0.0541) )) -> 0.59035 | BD37: =IF(CA<30,(-0.00005*GCAA^2+0.415*GCAA+35), IF(CA<40,(0.00006678*GCAA^2+0.4433*GCAA+30), IF(CA<50,(0.4*GCAA+71), IF(CA<60,(-0.00005*GCAA^2+0.535*GCAA+22), IF(CA<70,(0.00022852*GCAA^2+0.2286*GCAA+110.57), IF(CA<80,(-0.0000163*GCAA^2+0.5733*GCAA+45.389), (0.0000166*GCAA^2+0.5517*GCAA+54))))))) -> 22 | BE37: =IF(CA<30,(-0.00005*GCAA^2+0.395*GCAA+34), IF(CA<40,(0.46*GCAA+24), IF(CA<50,(0.3333*GCAA+79.667), IF(CA<60,(0.46*GCAA+34), IF(CA<70,(0.00022854*GCAA^2+0.2086*GCAA+107.57), IF(CA<80,(-0.00001395*GCAA^2+0.5463*GCAA+43.342), (-0.00001395*GCAA^2+0.5463*GCAA+48.342))))))) -> 34 | BF37: =IF(CA<30,(0.36*GCAA+34), IF(CA<40,(0.37*GCAA+51), IF(CA<50,(0.368*GCAA+64), IF(CA<60,(0.38857*GCAA+63.857), IF(CA<70,(0.38858*GCAA+68.857), IF(CA<80,(0.51429*GCAA+42.857), (0.51429*GCAA+47.857))))))) -> 63.857 | BG37: =IF(CA<30,(0.265*GCAA+24.5), IF(CA<40,(0.27*GCAA+38), IF(CA<50,(0.268*GCAA+48), IF(CA<60,(0.28572*GCAA+47.571), IF(CA<70,(0.28572*GCAA+50.571), IF(CA<80,(0.37714*GCAA+31.429), (0.37714*GCAA+35.429))))))) -> 47.571 | BH37: =IF(CA<30,(0.12*GCAA+27), IF(CA<40,(0.115*GCAA+50), IF(CA<50,(0.12*GCAA+61), IF(CA<60,(0.14571*GCAA+58.571), IF(CA<70,(0.14571*GCAA+62.571), IF(CA<80,(0.3*GCAA+27), (0.30285*GCAA+29.571))))))) -> 58.571 | BI37: =IF(CA<30,(0.014*GCAA+0.9), IF(CA<40,(0.014*GCAA+1.3), IF(CA<50,(0.0144*GCAA+1.4), IF(CA<60,(0.01457*GCAA+1.4571), IF(CA<70,(0.01486*GCAA+1.3857), IF(CA<80,(0.01771*GCAA+0.7429), (0.018*GCAA+0.7))))))) -> 1.4571 | BJ37: =IF(CA<30,(0.01*GCAA+0.5),IF(CA<40,(0.0105*GCAA+0.8),IF(CA<50,(0.0104*GCAA+1.1),IF(CA<60,(0.00001106*GCAA^2+0.0015*GCAA+2.7286),IF(CA<70,(0.00000452*GCAA^2+0.007*GCAA+1.7714),IF(CA<80,(0.01429*GCAA+0.2571),(0.01429*GCAA+0.3571))))))) -> 2.7286 | BK37: GCAA 100-600 g | BY37: 35 | BZ37: Pamuk Çırçır Artığı | CA37: 91 | CB37: 1.5 | CC37: 10 | CD37: 7 | CE37: 6 | CG37: 1.7 | CH37: 0.25 | CI37: 34 | CJ37: 70 | CK37: 42 | CL37: 1.9 | CM37: 0.9 | CN37: 0 | CO37: 0.9 | CP37: 51 | CQ37: 100 | CR37: 2 | CS37: 14 | CT37: 1.9 | CV37: 0.14 | CW37: 25 | CZ37: 8 | DA37: 0 | DB37: 1
G38: Co,mg | H38: =VLOOKUP(Koyun,KoyunReqs,18,FALSE) -> 0 | X38: PAMUK TOHUMU KÜSPESİ, SOLVENT, % 25 | Y38: 0 | Z38: 0.1125654246 | AA38: 0.2589004765 | AB38: 31.06805718 | AC38: 21.72512694 | AD38: 45.25130067 | AE38: 22.73821576 | AF38: 0.247643934 | AG38: 1.407067807 | AH38: 0.01463350519 | AI38: 0.02814135614 | BA38: Dişi Kuzu, Erken Erginleşen, , 4 aylık | BB38: =(-0.1027+0.0224*CA)+0.00227*GCAA -> 1.0173 | BC38: =IF(CA<30,(0.000032*GCAA^2-0.0008*GCAA+1.27), IF(CA<40,(0.0000352*GCAA^2-0.0122*GCAA+3.89), IF(CA<50,(0.00001185*GCAA^2+0.00002*GCAA+2.8533), IF(CA<60,(0.0000088*GCAA^2+0.0022*GCAA+2.6171), IF(CA<70,(-0.00001505*GCAA^2+0.0224*GCAA-0.8443), IF(CA<80,(-0.0000114*GCAA^2+0.0141*GCAA+2), (0.00001795*GCAA^2-0.0034*GCAA+4.4267))))))) -> 2.6171 | BD38: =IF(CA<30,(0.00035*GCAA^2+0.255*GCAA+41), IF(CA<40,(0.365*GCAA+52), IF(CA<50,(0.0004133*GCAA^2+0.058*GCAA+114.67), IF(CA<60,(0.00034293*GCAA^2+0.0971*GCAA+115.29), IF(CA<70,(0.0003166*GCAA^2+0.0817*GCAA+139), IF(CA<80,(0.0001*GCAA^2+0.255*GCAA+111.5), (0.00036*GCAA^2+0.186*GCAA+121))))))) -> 115.29 | BE38: =IF(CA<30,(0.0003*GCAA^2+0.26*GCAA+37), IF(CA<40,(0.0006*GCAA^2-0.01*GCAA+97), IF(CA<50,(0.0003867*GCAA^2+0.062*GCAA+108.33), IF(CA<60,(0.00030945*GCAA^2+0.1055*GCAA+108.29), IF(CA<70,(0.00019426*GCAA^2+0.2063*GCAA+95.286), IF(CA<80,(0.368*GCAA+89.8), (0.00032*GCAA^2+0.192*GCAA+114))))))) -> 108.29 | BF38: =IF(CA<30,(0.36*GCAA+28), IF(CA<40,(0.335*GCAA+47), IF(CA<50,(0.336*GCAA+58), IF(CA<60,(0.35429*GCAA+58.429), IF(CA<70,(0.35429*GCAA+63.429), IF(CA<80,(0.29142*GCAA+95.286), (0.38285*GCAA+86.571))))))) -> 58.429 | BG38: =IF(CA<30,(0.265*GCAA+20.5), IF(CA<40,(0.245*GCAA+35), IF(CA<50,(0.248*GCAA+42), IF(CA<60,(0.26*GCAA+43), IF(CA<70,(0.26*GCAA+47), IF(CA<80,(0.21714*GCAA+69.429), (0.28*GCAA+64))))))) -> 43 | BH38: =IF(CA<30,(0.345*GCAA+20.5), IF(CA<40,(0.32*GCAA+39), IF(CA<50,(0.32*GCAA+50), IF(CA<60,(0.34286*GCAA+48.286), IF(CA<70,(0.34286*GCAA+52.286), IF(CA<80,(0.28286*GCAA+82.571), (0.37714*GCAA+71.429))))))) -> 48.286 | BI38: =IF(CA<30,(0.014*GCAA+0.7), IF(CA<40,(0.0135*GCAA+1), IF(CA<50,(0.0132*GCAA+1.3), IF(CA<60,(0.014*GCAA+1.1), IF(CA<70,(0.01371*GCAA+1.2714), IF(CA<80,(0.01229*GCAA+1.8571), (0.01429*GCAA+1.6571))))))) -> 1.1 | BJ38: =IF(CA<30,(0.0125*GCAA+0.25),IF(CA<40,(0.012*GCAA+0.6),IF(CA<50,(0.0116*GCAA+0.9),IF(CA<60,(0.01229*GCAA+0.7286),IF(CA<70,(0.012*GCAA+0.9),IF(CA<80,(0.01058*GCAA+1.5143),(0.01286*GCAA+1.2714))))))) -> 0.7286 | BK38: GCAA 100-600 g | BY38: 36 | BZ38: Parlak Yalancı Darı (Bahiagrass) Kuru Otu | CA38: 90 | CB38: 1.8 | CC38: 8 | CD38: 5.6 | CE38: 4.2 | CF38: 3 | CG38: 0.48 | CH38: 0.2 | CI38: 32 | CJ38: 72 | CK38: 51 | CL38: 2.2 | CM38: 1.1 | CN38: 0.3 | CO38: 1.1 | CP38: 41 | CQ38: 98 | CR38: 1.9 | CS38: 8 | CT38: 1.4 | CV38: 0.21 | CX38: 36.6 | CZ38: 9 | DA38: 0 | DB38: 1
G39: Cu,mg | H39: =VLOOKUP(Koyun,KoyunReqs,19,FALSE) -> 0 | T39: 1 yaşında | X39: Dikalsiyum Fosfat | Y39: 0 | Z39: 0 | AA39: 0 | AB39: 0 | AC39: 0 | AD39: 0 | AE39: 0 | AF39: 0 | AG39: 0 | AH39: 0 | AI39: 0 | BA39: Dişi Kuzu, Geç Erginleşen, , 8 aylık | BB39: =(0.1438+0.021*CA)+0.00141*GCAA -> 1.1938 | BC39: =IF(CA<30,(0.000006*GCAA^2+0.004*GCAA+0.95), IF(CA<40,(0.000044*GCAA^2-0.0172*GCAA+4.14), IF(CA<50,(-0.0000125*GCAA^2+0.0155*GCAA+0.005), IF(CA<60,(-0.0000098*GCAA^2+0.015*GCAA+0.1625), IF(CA<70,(-0.00001025*GCAA^2+0.0127*GCAA+1.9043), IF(CA<80,(0.0000066*GCAA^2+0.0029*GCAA+2.8129), (0.00000645*GCAA^2+0.0031*GCAA+2.9714))))))) -> 0.1625 | BD39: =IF(CA<30,(0.00025*GCAA^2+0.315*GCAA+39), IF(CA<40,(0.0005*GCAA^2+0.09*GCAA+91), IF(CA<50,(0.00029335*GCAA^2+0.176*GCAA+97.667), IF(CA<60,(0.0002666*GCAA^2+0.1567*GCAA+121), IF(CA<70,(0.0002381*GCAA^2+0.1119*GCAA+165.14), IF(CA<80,(0.00025709*GCAA^2+0.2586*GCAA+110.43), (0.00029709*GCAA^2+0.2326*GCAA+121.43))))))) -> 121 | BE39: =IF(CA<30,(0.00025*GCAA^2+0.295*GCAA+38), IF(CA<40,(0.42*GCAA+30), IF(CA<50,(0.00029332*GCAA^2+0.156*GCAA+95.667), IF(CA<60,(0.000154248*GCAA^2+0.2603*GCAA+85.286), IF(CA<70,(0.0002143*GCAA^2+0.1207*GCAA+154.43), IF(CA<80,(0.00021708*GCAA^2+0.2646*GCAA+103.43), (0.00025709*GCAA^2+0.2386*GCAA+113.43))))))) -> 85.286 | BF39: =IF(CA<30,(0.375*GCAA+29.5), IF(CA<40,(0.36*GCAA+45), IF(CA<50,(0.364*GCAA+55), IF(CA<60,(0.37429*GCAA+59.429), IF(CA<70,(0.28571*GCAA+118.57), IF(CA<80,(0.38858*GCAA+83.714), (0.38858*GCAA+89.714))))))) -> 59.429 | BG39: =IF(CA<30,(0.28*GCAA+21), IF(CA<40,(0.265*GCAA+33), IF(CA<50,(0.264*GCAA+42), IF(CA<60,(0.27429*GCAA+44.429), IF(CA<70,(0.21143*GCAA+87.143), IF(CA<80,(0.28572*GCAA+61.143), (0.28572*GCAA+66.143))))))) -> 44.429 | BH39: =IF(CA<30,(0.23*GCAA+28), IF(CA<40,(0.215*GCAA+46), IF(CA<50,(0.22*GCAA+57), IF(CA<60,(0.23429*GCAA+61.429), IF(CA<70,(0.14285*GCAA+124.29), IF(CA<80,(0.26*GCAA+83), (0.26286*GCAA+89.571))))))) -> 61.429 | BI39: =IF(CA<30,(0.014*GCAA+0.8), IF(CA<40,(0.014*GCAA+1), IF(CA<50,(0.014*GCAA+1.2), IF(CA<60,(0.01429*GCAA+1.2286), IF(CA<70,(0.012*GCAA+2.7), IF(CA<80,(0.01458*GCAA+1.7143), (0.01458*GCAA+1.8143))))))) -> 1.2286 | BJ39: =IF(CA<30,(0.0115*GCAA+0.35),IF(CA<40,(0.011*GCAA+0.7),IF(CA<50,(0.0112*GCAA+0.8),IF(CA<60,(0.01143*GCAA+0.8429),IF(CA<70,(0.00914*GCAA+2.3143),IF(CA<80,(0.01171*GCAA+1.3429),(0.01171*GCAA+1.4429))))))) -> 0.8429 | BK39: GCAA 100-600 g | BY39: 37 | BZ39: Pirinç Kabukları | CA39: 92 | CB39: 0.5 | CC39: 3 | CD39: 2.1 | CE39: 0.3 | CF39: 1.4 | CG39: 0.14 | CH39: 0.07 | CI39: 44 | CJ39: 81 | CK39: 13 | CL39: 0.6 | CM39: 0.8 | CN39: 0 | CO39: 0.2 | CP39: 70 | CQ39: 90 | CR39: 0.9 | CS39: 20 | CT39: 0.5 | CU39: 0.08 | CV39: 0.08 | CW39: 24 | CZ39: 5 | DA39: 0 | DB39: 1
G40: I,mg | H40: =VLOOKUP(Koyun,KoyunReqs,20,FALSE) -> 0 | T40: 1,5 yaş üzeri | X40: Mermer Tozu | Y40: 0 | Z40: 0.001281833344 | AA40: 0 | AB40: 0 | AC40: 0 | AD40: 0 | AE40: 0 | AF40: 0.4742783373 | AG40: 0 | AH40: 0 | AI40: 0 | BA40: Dişi Kuzu, Erken Erginleşen, , 8 aylık | BB40: =(0.0042+0.00001*CA)*GCAA+(0.0065-0.00005*CA^2+0.0108*CA) -> 0.4215 | BC40: =(-0.00000008*CA^2 + 0.000026*CA + 0.0124)*GCAA + (-0.000039*CA^2 + 0.02195*CA + 0.1751) -> 1.1751 | BD40: =IF(CA<30,(-0.00005*GCAA^2+0.445*GCAA+24), IF(CA<40,(0.43*GCAA+33), IF(CA<50,(-0.00001335*GCAA^2+0.442*GCAA+39.333), IF(CA<60,(0.44*GCAA+46), IF(CA<70,(0.00001395*GCAA^2+0.4309*GCAA+55.429), IF(CA<80,(0.0001095*GCAA^2+0.2174*GCAA+146.93), (0.00012862*GCAA^2+0.2021*GCAA+157.79))))))) -> 46 | BE40: =IF(CA<30,(-0.00005*GCAA^2+0.425*GCAA+23), IF(CA<40,(0.41*GCAA+32), IF(CA<50,(-0.00001915*GCAA^2+0.4259*GCAA+36.804), IF(CA<60,(0.42*GCAA+44), IF(CA<70,(-0.00001645*GCAA^2+0.4366*GCAA+47.893), IF(CA<80,(0.00010475*GCAA^2+0.2062*GCAA+140.71), (0.0001237*GCAA^2+0.191*GCAA+150.57))))))) -> 44 | BF40: =IF(CA<30,(0.39*GCAA+23), IF(CA<40,(0.39*GCAA+31), IF(CA<50,(0.396*GCAA+37), IF(CA<60,(0.4*GCAA+43), IF(CA<70,(0.40286*GCAA+49.286), IF(CA<80,(0.26*GCAA+128), (0.26*GCAA+135))))))) -> 43 | BG40: =IF(CA<30,(0.285*GCAA+17.5), IF(CA<40,(0.29*GCAA+22), IF(CA<50,(0.292*GCAA+27), IF(CA<60,(0.29429*GCAA+31.429), IF(CA<70,(0.29714*GCAA+35.714), IF(CA<80,(0.19142*GCAA+94.286), (0.191422*GCAA+99.286))))))) -> 31.429 | BH40: =IF(CA<30,(0.46*GCAA+22), IF(CA<40,(0.475*GCAA+28), IF(CA<50,(0.48*GCAA+36), IF(CA<60,(0.48571*GCAA+42.571), IF(CA<70,(0.43714*GCAA+82.714), IF(CA<80,(0.36*GCAA+125), (0.36287*GCAA+131.57))))))) -> 42.571 | BI40: =IF(CA<30,(0.0145*GCAA+0.55), IF(CA<40,(0.015*GCAA+0.5), IF(CA<50,(0.0148*GCAA+0.7), IF(CA<60,(0.01486*GCAA+0.6857), IF(CA<70,(0.01343*GCAA+1.6429), IF(CA<80,(0.01142*GCAA+2.5857), (0.01142*GCAA+2.6857))))))) -> 0.6857 | BJ40: =IF(CA<30,(0.014*GCAA+0.1),IF(CA<40,(0.014*GCAA+0.2),IF(CA<50,(0.014*GCAA+0.3),IF(CA<60,(0.01429*GCAA+0.2286),IF(CA<70,(0.01257*GCAA+1.3571),IF(CA<80,(0.01029*GCAA+2.3571),(0.01029*GCAA+2.4571))))))) -> 0.2286 | BK40: GCAA 100-600 g | BY40: 38 | BZ40: Pirinç Samanı | CA40: 91 | CB40: 1.4 | CC40: 4 | CD40: 2.8 | CE40: 0.6 | CG40: 0.25 | CH40: 0.08 | CI40: 40 | CJ40: 72 | CK40: 40 | CL40: 1.8 | CM40: 0.9 | CN40: 0 | CO40: 0.8 | CP40: 55 | CQ40: 100 | CR40: 1.4 | CS40: 12 | CT40: 1.1 | CV40: 0.11 | CZ40: 3.5 | DA40: 0 | DB40: 1
G41: Fe,mg | H41: =VLOOKUP(Koyun,KoyunReqs,21,FALSE) -> 0 | X41: Tuz | Y41: 0 | Z41: 0.001 | AA41: 0 | AB41: 0 | AC41: 0 | AD41: 0 | AE41: 0 | AF41: 0 | AG41: 0 | AH41: 0 | AI41: 0 | BA41: Erkek kuzu, Geç Erginleşen, , 4 aylık | BB41: =IF(CA<30,(0.0000005*GCAA^2-0.00005*GCAA+0.6), IF(CA<40,(0.0024*GCAA+0.19), IF(CA<50,(-0.00002*GCAA^2+0.015*GCAA-1.15), IF(CA<60,(0.0000062*GCAA^2-0.0043*GCAA+2.1171), IF(CA<70,(-0.000012*GCAA^2+0.0109*GCAA-0.4957), IF(CA<80,(0.0044*GCAA+0.45), (0.00445*GCAA+0.4906))))))) -> 2.1171 | BC41: =IF(CA<30,(0.00325*GCAA+0.8167), IF(CA<40,(0.0000308*GCAA^2-0.0149*GCAA+3.784), IF(CA<50,(0.0000168*GCAA^2-0.00918*GCAA+3.8567), IF(CA<60,(0.0000105*GCAA^2-0.0046*GCAA+3.2396), IF(CA<70,(-0.000022*GCAA^2+0.0224*GCAA-1.4071), IF(CA<80,(0.00844*GCAA+0.8558), (0.00848*GCAA+0.9502))))))) -> 3.2396 | BD41: =IF(CA<30,(-0.00005*GCAA^2+0.415*GCAA+36), IF(CA<40,(0.4*GCAA+59), IF(CA<50,(0.4*GCAA+73), IF(CA<60,(-0.00005*GCAA^2+0.535*GCAA+24), IF(CA<70,(0.00026854*GCAA^2+0.1946*GCAA+119.57), IF(CA<80,(-0.00001145*GCAA^2+0.5703*GCAA+48.714), (-0.00001145*GCAA^2+0.5703*GCAA+54.714))))))) -> 24 | BE41: =IF(CA<30,(0.00005*GCAA^2+0.355*GCAA+38), IF(CA<40,(0.3*GCAA+73), IF(CA<50,(0.33332*GCAA+81.667), IF(CA<60,(0.40286*GCAA+70.286), IF(CA<70,(0.305*GCAA+135), IF(CA<80,(-0.00001422*GCAA^2+0.5464*GCAA+46.357), (0.54*GCAA+52))))))) -> 70.286 | BF41: =IF(CA<30,(0.365*GCAA+33.5), IF(CA<40,(0.365*GCAA+54), IF(CA<50,(0.364*GCAA+67), IF(CA<60,(0.38858*GCAA+65.857), IF(CA<70,(0.38571*GCAA+72.571), IF(CA<80,(0.51714*GCAA+44.429), (0.51714*GCAA+49.429))))))) -> 65.857 | BG41: =IF(CA<30,(0.265*GCAA+25.5), IF(CA<40,(0.27*GCAA+39), IF(CA<50,(0.272*GCAA+48), IF(CA<60,(0.28572*GCAA+48.571), IF(CA<70,(0.28572*GCAA+52.571), IF(CA<80,(0.38*GCAA+33), (0.38*GCAA+37))))))) -> 48.571 | BH41: =IF(CA<30,(0.12*GCAA+29), IF(CA<40,(0.12*GCAA+51), IF(CA<50,(0.12*GCAA+64), IF(CA<60,(0.14572*GCAA+62.571), IF(CA<70,(0.14572*GCAA+66.571), IF(CA<80,(0.30572*GCAA+30.143), (0.30572*GCAA+34.143))))))) -> 62.571 | BI41: =IF(CA<30,(0.014*GCAA+0.9), IF(CA<40,(0.014*GCAA+1.3), IF(CA<50,(0.014*GCAA+1.6), IF(CA<60,(0.01486*GCAA+1.3857), IF(CA<70,(0.01457*GCAA+1.5571), IF(CA<80,(0.018*GCAA+0.7), (0.018*GCAA+0.8))))))) -> 1.3857 | BJ41: =IF(CA<30,(0.01*GCAA+0.5),IF(CA<40,(0.01*GCAA+1),IF(CA<50,(0.0104*GCAA+1.1),IF(CA<60,(0.01086*GCAA+1.0857),IF(CA<70,(0.01086*GCAA+1.1857),IF(CA<80,(0.01429*GCAA+0.3571),(0.01458*GCAA+0.3143))))))) -> 1.0857 | BK41: GCAA 100-600 g | BY41: 39 | BZ41: Pirinç Samanı, Amonyakla muamele | CA41: 87 | CB41: 1.6 | CC41: 9 | CD41: 6.3 | CE41: 5.1 | CG41: 0.25 | CH41: 0.08 | CI41: 39 | CJ41: 68 | CK41: 45 | CL41: 2 | CM41: 1 | CN41: 0.1 | CO41: 1 | CP41: 53 | CQ41: 100 | CR41: 1.3 | CS41: 12 | CT41: 1.1 | CV41: 0.11 | CZ41: 4 | DA41: 0 | DB41: 1
G42: Mn,mg | H42: =VLOOKUP(Koyun,KoyunReqs,22,FALSE) -> 0 | T42: Yaşı, Koyun+Flaşing | X42: =X12 -> Vitamin-Mineral Karması | Y42: =IF(X12=0,0,IF(OR(A12=1,A12=2,A12=3)=TRUE,Z42,0)) -> 0 | Z42: =IF($X12=0,0,IF(ISERROR(Y12*Z12/100)=TRUE,0,Y12*Z12/100)) -> 0.001 | AA42: =IF($X12=0,0,IF(ISERROR(Z42*AA12)=TRUE,0,Z42*AA12)) -> 0 | AB42: =IF($X12=0,0,IF(ISERROR(Z42*AB12*10)=TRUE,0,Z42*AB12*10)) -> 0 | AC42: =IF($X12=0,0,IF(ISERROR(Z42*AC12*10)=TRUE,0,Z42*AC12*10)) -> 0 | AD42: =IF($X12=0,0,IF(ISERROR(Z42*AD12*10)=TRUE,0,Z42*AD12*10)) -> 0 | AE42: =IF($X12=0,0,IF(ISERROR(Z42*AE12*10)=TRUE,0,Z42*AE12*10)) -> 0 | AF42: =IF($X12=0,0,IF(ISERROR(Z42*AF12*10)=TRUE,0,Z42*AF12*10)) -> 0 | AG42: =IF($X12=0,0,IF(ISERROR(Z42*AG12*10)=TRUE,0,Z42*AG12*10)) -> 0 | AH42: =IF($X12=0,0,IF(ISERROR(Z42*AH12/100)=TRUE,0,Z42*AH12/100)) -> 0 | AI42: =IF($X12=0,0,IF(ISERROR(Z42*AI12/100)=TRUE,0,Z42*AI12/100)) -> 0 | BA42: Erkek kuzu, Erken Erginleşen, , 4 aylık | BB42: =IF(CA<30,(0.00001*GCAA^2-0.00113*GCAA+0.6627), IF(CA<40,(0.0037*GCAA+0.1637), IF(CA<50,(0.00001*GCAA^2-0.00562*GCAA+2.3267), IF(CA<60,(0.000007*GCAA^2-0.0033*GCAA+1.9862), IF(CA<70,(0.000007*GCAA^2-0.0033*GCAA+2.0362), IF(CA<80,(-0.0000152*GCAA^2+0.0108*GCAA+0.6029), (0.000008*GCAA^2-0.00204*GCAA+2.0686))))))) -> 1.9862 | BC42: =IF(CA<30,(0.0000114*GCAA^2+0.0054*GCAA+0.9018), IF(CA<40,(-0.00000056*GCAA^2+0.011*GCAA+0.401), IF(CA<50,(0.000012*GCAA^2+2.94), IF(CA<60,(0.0000074*GCAA^2+0.0035*GCAA+2.4859), IF(CA<70,(0.0000072*GCAA^2+0.0037*GCAA+2.5667), IF(CA<80,(0.000003*GCAA^2+0.006*GCAA+2.6307), (0.000014*GCAA^2+0.0019*GCAA+3.1044))))))) -> 2.4859 | BD42: =IF(CA<30,(0.00035*GCAA^2+0.255*GCAA+42),IF(CA<40,(0.00013325*GCAA^2+0.3467*GCAA+40),IF(CA<50,(0.0004133*GCAA^2+0.058*GCAA+116.67),IF(CA<60,(0.00021726*GCAA^2+0.2011*GCAA+100.14),IF(CA<70,(0.00021725*GCAA^2+0.2011*GCAA+106.14),IF(CA<80,(0.0000666*GCAA^2+0.2767*GCAA+112),(0.00036*GCAA^2+0.186*GCAA+125))))))) -> 100.14 | BE42: =IF(CA<30,(0.38*GCAA+29), IF(CA<40,(0.00005*GCAA^2+0.385*GCAA+29), IF(CA<50,(0.3067*GCAA+73.333), IF(CA<60,(0.3714*GCAA+63.143), IF(CA<70,(0.3714*GCAA+69.143), IF(CA<80,(0.00006*GCAA^2+0.2655*GCAA+106.79), (0.4*GCAA+94))))))) -> 63.143 | BF42: =IF(CA<30,(0.36*GCAA+29), IF(CA<40,(0.395*GCAA+24), IF(CA<50,(0.336*GCAA+60), IF(CA<60,(0.35429*GCAA+60.429), IF(CA<70,(0.35429*GCAA+66.429), IF(CA<80,(0.29142*GCAA+98.286), (0.38286*GCAA+89.571))))))) -> 60.429 | BG42: =IF(CA<30,(0.27*GCAA+20), IF(CA<40,(0.29*GCAA+18), IF(CA<50,(0.248*GCAA+44), IF(CA<60,(0.26*GCAA+45), IF(CA<70,(0.26*GCAA+49), IF(CA<80,(0.21714*GCAA+71.429), (0.28286*GCAA+65.571))))))) -> 45 | BH42: =IF(CA<30,(0.35*GCAA+21), IF(CA<40,(0.385*GCAA+16), IF(CA<50,(0.324*GCAA+52), IF(CA<60,(0.34571*GCAA+51.571), IF(CA<70,(0.34858*GCAA+54.857), IF(CA<80,(0.28571*GCAA+87.143), (0.38*GCAA+77))))))) -> 51.571 | BI42: =IF(CA<30,(0.014*GCAA+0.7),IF(CA<40,(0.0145*GCAA+0.6),IF(CA<50,(0.0136*GCAA+1.2),IF(CA<70,(0.01371*GCAA+1.2714),IF(CA<80,(0.01229*GCAA+1.9571),(0.01458*GCAA+1.6143)))))) -> 1.2714 | BJ42: =IF(CA<30,(0.0125*GCAA+0.25),IF(CA<40,(0.0135*GCAA),IF(CA<50,(0.012*GCAA+0.8),IF(CA<60,(0.012*GCAA+0.9),IF(CA<70,(0.01229*GCAA+0.8286),IF(CA<80,(0.01058*GCAA+1.6143),(0.01314*GCAA+1.2286))))))) -> 0.9 | BK42: GCAA 100-600 g | BY42: 40 | BZ42: Sarı Çiçekli Gazal Boynuzu (Birdsfoot) Kuru Otu | CA42: 89 | CB42: 2.1 | CC42: 16 | CD42: 11.2 | CE42: 11.4 | CF42: 3.5 | CG42: 1.73 | CH42: 0.24 | CI42: 31 | CJ42: 50 | CK42: 57 | CL42: 2.5 | CM42: 1.3 | CN42: 0.6 | CO42: 1.3 | CP42: 38 | CQ42: 92 | CR42: 2.2 | CS42: 8 | CT42: 1.8 | CV42: 0.25 | CW42: 28 | CZ42: 8 | DA42: 0 | DB42: 1
G43: Se,mg | H43: =VLOOKUP(Koyun,KoyunReqs,23,FALSE) -> 0 | X43: 0 | Y43: 0 | Z43: 0 | AA43: 0 | AB43: 0 | AC43: 0 | AD43: 0 | AE43: 0 | AF43: 0 | AG43: 0 | AH43: 0 | AI43: 0 | BA43: Erkek kuzu, Geç Erginleşen, , 8 aylık | BB43: =IF(CA<30,(0.000008*GCAA^2-0.00135*GCAA+0.68), IF(CA<40,(0.000013*GCAA^2-0.0066*GCAA+1.89), IF(CA<50,(-0.0000118*GCAA^2+0.0101*GCAA-0.415), IF(CA<60,(0.000004*GCAA^2-0.0018*GCAA+1.67), IF(CA<70,(0.0000043*GCAA^2-0.0021*GCAA+1.83), IF(CA<80,(0.00375*GCAA+0.7267), (0.0000073*GCAA^2-0.0028*GCAA+2.2729))))))) -> 1.67 | BC43: =IF(CA<30,(0.000006*GCAA^2+0.0041*GCAA+1.03), IF(CA<40,(0.00001265*GCAA^2-0.0015*GCAA+2.39), IF(CA<50,(0.0000079*GCAA^2+0.0002*GCAA+2.7333), IF(CA<60,(0.00000476*GCAA^2+0.0026*GCAA+2.5698), IF(CA<70,(-0.0000071*GCAA^2+0.0127*GCAA+1.0314), IF(CA<80,(0.0000096*GCAA^2+0.0013*GCAA+3.2464), (-0.0000264*GCAA^2+0.0251*GCAA+0.6607))))))) -> 2.5698 | BD43: =IF(CA<30,(0.00035*GCAA^2+0.275*GCAA+44),IF(CA<40,(0.00045*GCAA^2+0.125*GCAA+88),IF(CA<50,(0.00032*GCAA^2+0.152*GCAA+106),IF(CA<60,(0.00025709*GCAA^2+0.1929*GCAA+106.71),IF(CA<70,(0.0002666*GCAA^2+0.1567*GCAA+133),IF(CA<80,(0.00025709*GCAA^2+0.2586*GCAA+116.43),(0.00029709*GCAA^2+0.2326*GCAA+127.43))))))) -> 106.71 | BE43: =IF(CA<30,(0.00025*GCAA^2+0.295*GCAA+39), IF(CA<40,(0.00045*GCAA^2+0.105*GCAA+86), IF(CA<50,(0.00029335*GCAA^2+0.156*GCAA+98.667), IF(CA<60,(0.00024293*GCAA^2+0.1821*GCAA+103.29), IF(CA<70,(0.00015425*GCAA^2+0.2603*GCAA+96.286), IF(CA<80,(0.00025709*GCAA^2+0.2386*GCAA+112.43), (0.00025709*GCAA^2+0.2386*GCAA+119.43))))))) -> 103.29 | BF43: =IF(CA<30,(0.38*GCAA+30), IF(CA<40,(0.36*GCAA+48), IF(CA<50,(0.36*GCAA+59), IF(CA<60,(0.37142*GCAA+64.143), IF(CA<70,(0.37142*GCAA+71.143), IF(CA<80,(0.38858*GCAA+88.714), (0.38858*GCAA+95.714))))))) -> 64.143 | BG43: =IF(CA<30,(0.28*GCAA+22), IF(CA<40,(0.265*GCAA+35), IF(CA<50,(0.264*GCAA+44), IF(CA<60,(0.27714*GCAA+45.714), IF(CA<70,(0.27714*GCAA+50.714), IF(CA<80,(0.28571*GCAA+65.143), (0.28571*GCAA+71.143))))))) -> 45.714 | BH43: =IF(CA<30,(0.235*GCAA+30.5), IF(CA<40,(0.215*GCAA+51), IF(CA<50,(0.224*GCAA+62), IF(CA<60,(0.23715*GCAA+67.714), IF(CA<70,(0.24286*GCAA+74.286), IF(CA<80,(0.26286*GCAA+92.571), (0.26858*GCAA+98.714))))))) -> 67.714 | BI43: =IF(CA<30,(0.0145*GCAA+0.75),IF(CA<40,(0.014*GCAA+1.1),IF(CA<50,(0.014*GCAA+1.3),IF(CA<60,(0.01429*GCAA+1.3286),IF(CA<70,(0.01429*GCAA+1.4286),IF(CA<80,(0.01458*GCAA+1.8143),(0.01458*GCAA+1.9143))))))) -> 1.3286 | BJ43: =IF(CA<30,(0.0115*GCAA+0.35),IF(CA<40,(0.0115*GCAA+0.6),IF(CA<50,(0.0112*GCAA+0.9),IF(CA<60,(0.01143*GCAA+0.9429),IF(CA<70,(0.01143*GCAA+1.0429),IF(CA<80,(0.012*GCAA+1.4),(0.012*GCAA+1.5))))))) -> 0.9429 | BK43: GCAA 100-600 g | BY43: 41 | BZ43: Sığır Gübresi, Kurutulmuş | CA43: 92 | CB43: 1.4 | CC43: 17 | CD43: 11.9 | CE43: 12.3 | CG43: 1.35 | CH43: 1 | CI43: 34 | CJ43: 55 | CK43: 38 | CL43: 1.7 | CM43: 0.9 | CN43: 0 | CO43: 0.8 | CP43: 37 | CQ43: 0 | CR43: 2.6 | CS43: 14 | CT43: 0.6 | CV43: 1.78 | CW43: 240 | CZ43: 100 | DA43: 0 | DB43: 1
G44: Zn,mg | H44: =VLOOKUP(Koyun,KoyunReqs,24,FALSE) -> 0 | X44: 0 | Y44: 0 | Z44: 0 | AA44: 0 | AB44: 0 | AC44: 0 | AD44: 0 | AE44: 0 | AF44: 0 | AG44: 0 | AH44: 0 | AI44: 0 | BA44: Erkek kuzu, Erken Erginleşen, , 8 aylık | BB44: =IF(CA<70, ( -0.00000016*CA^2 + 0.00002*CA + 0.0042)* GCAA+ (0.0000011*CA^2 + 0.00748*CA + 0.0893), IF(CA<80, 0.00000835*GCAA^2-0.0026*GCAA+2.2867, 0.0000087*GCAA^2-0.0029*GCAA+2.4367 )) -> 0.46605 | BC44: =IF(CA<70,(0.0000235*CA+0.0125)*GCAA+( -0.000102*CA^2 + 0.0296*CA + 0.1306), (0.0000000074*CA+0.000003)*GCAA^2+0.0079*GCAA+(0.02408*CA+2.2965)) -> 1.3556 | BD44: =IF(CA<30,(0.43*GCAA+27),IF(CA<40,(0.43*GCAA+36),IF(CA<50,(0.44*GCAA+42),IF(CA<60,(0.44*GCAA+51),IF(CA<70,(-0.00005*GCAA^2+0.485*GCAA+59),IF(CA<80,(0.00014762*GCAA^2+0.1869*GCAA+158.64),(0.00014765*GCAA^2+0.1869*GCAA+167.64))))))) -> 51 | BE44: =IF(CA<30,(0.41*GCAA+26), IF(CA<40,(0.42*GCAA+32), IF(CA<50,(0.42*GCAA+40), IF(CA<60,(-0.00001895*GCAA^2+0.439*GCAA+44.429), IF(CA<70,(-0.00002277*GCAA^2+0.4451*GCAA+51.143), IF(CA<80,(0.00063435*GCAA^2-0.1409*GCAA+187.86), (0.27141*GCAA+149.29))))))) -> 44.429 | BF44: =IF(CA<30,(0.39*GCAA+25), IF(CA<40,(0.395*GCAA+32), IF(CA<50,(0.4*GCAA+39), IF(CA<60,(0.40286*GCAA+46.286), IF(CA<70,(0.40858*GCAA+51.857), IF(CA<80,(0.26*GCAA+134), (0.25713*GCAA+143.43))))))) -> 46.286 | BG44: =IF(CA<30,(0.29*GCAA+18), IF(CA<40,(0.29*GCAA+24), IF(CA<50,(0.296*GCAA+28), IF(CA<60,(0.29714*GCAA+33.714), IF(CA<70,(0.3*GCAA+38), IF(CA<80,(0.18858*GCAA+99.714), (0.18858*GCAA+105.71))))))) -> 33.714 | BH44: =IF(CA<30,(0.47*GCAA+24), IF(CA<40,(0.475*GCAA+34), IF(CA<50,(0.484*GCAA+42), IF(CA<60,(0.49429*GCAA+48.429), IF(CA<70,(0.44286*GCAA+91.286), IF(CA<80,(0.36571*GCAA+134.14), (0.36859*GCAA+142.71))))))) -> 48.429 | BI44: =IF(CA<30,(0.015*GCAA+0.5),IF(CA<40,(0.0145*GCAA+0.7),IF(CA<50,(0.0148*GCAA+0.7),IF(CA<60,(0.01486*GCAA+0.7857),IF(CA<70,(0.01343*GCAA+1.7429),IF(CA<80,(0.01142*GCAA+2.6857),(0.01142*GCAA+2.7857))))))) -> 0.7857 | BJ44: =IF(CA<30,(0.014*GCAA+0.1),IF(CA<40,(0.014*GCAA+0.2),IF(CA<50,(0.0144*GCAA+0.2),IF(CA<60,(0.01429*GCAA+0.3286),IF(CA<70,(0.01257*GCAA+1.4571),IF(CA<80,(0.01058*GCAA+2.4143),(0.01058*GCAA+2.5143))))))) -> 0.3286 | BK44: GCAA 100-600 g | BY44: 42 | BZ44: Sorgum Sapları | CA44: 87 | CB44: 2 | CC44: 5 | CD44: 3.5 | CE44: 1.5 | CG44: 0.49 | CH44: 0.12 | CI44: 33 | CJ44: 65 | CK44: 55 | CL44: 2.4 | CM44: 1.2 | CN44: 0.5 | CO44: 1.2 | CP44: 41 | CQ44: 100 | CR44: 1.9 | CS44: 10 | CT44: 1.2 | CZ44: 5 | DA44: 0 | DB44: 1
X45: 0 | Y45: 0 | Z45: 0 | AA45: 0 | AB45: 0 | AC45: 0 | AD45: 0 | AE45: 0 | AF45: 0 | AG45: 0 | AH45: 0 | AI45: 0 | BA45: Dişi Toklu, Yaşama payı, , | BB45: =-0.000017*CA^2 + 0.0262*CA + 0.1594 -> 1.4269 | BC45: =-0.0000405*CA^2 + 0.0627*CA + 0.3718 -> 3.40555 | BD45: =-0.0008*CA^2 + 2.0605*CA + 15.91 -> 116.935 | BE45: =-0.00079*CA^2 + 1.9605*CA + 15.91 -> 111.96 | BF45: =-0.00072*CA^2 + 1.8762*CA + 15.104 -> 107.114 | BG45: =-0.000645*CA^2 + 1.4006*CA + 10.23 -> 78.6475 | BH45: =-0.00195*CA^2 + 2.3343*CA + 10.941 -> 122.781 | BI45: =-0.000049*CA^2 + 0.0616*CA + 0.7148 -> 3.6723 | BJ45: =-0.000035*CA^2 + 0.0446*CA - 0.0392 -> 2.1033 | BY45: 43 | BZ45: Soya Kabukları | CA45: 90 | CB45: 2.8 | CC45: 13 | CD45: 9.1 | CE45: 8.7 | CF45: 3.6 | CG45: 0.55 | CH45: 0.17 | CI45: 38 | CJ45: 62 | CK45: 77 | CL45: 3.4 | CM45: 1.8 | CN45: 1.1 | CO45: 1.7 | CP45: 46 | CQ45: 28 | CR45: 2.6 | CS45: 5 | CT45: 1.4 | CU45: 0.02 | CV45: 0.12 | CW45: 38 | CZ45: 6 | DA45: 0 | DB45: 1
T46: 4 aylık | X46: 0 | Y46: 0 | Z46: 0 | AA46: 0 | AB46: 0 | AC46: 0 | AD46: 0 | AE46: 0 | AF46: 0 | AG46: 0 | AH46: 0 | AI46: 0 | BA46: Dişi Toklu, Flaşing, , | BB46: =-0.0000175*CA^2 + 0.0282*CA + 0.1828 -> 1.54905 | BC46: =-0.000044*CA^2 + 0.0677*CA + 0.4245 -> 3.6995 | BD46: =2.1662*CA + 23.955 -> 132.265 | BE46: =-0.0008*CA^2+ 2.1915*CA + 18.49 -> 126.065 | BF46: =-0.0011*CA^2 + 2.1465*CA + 16.112 -> 120.687 | BG46: =-0.0005*CA^2+ 1.5303*CA + 13.689 -> 88.954 | BH46: =-0.001635*CA^2 + 2.4483*CA + 14.739 -> 133.0665 | BI46: =-0.0000305*CA^2 + 0.0686*CA + 0.9202 -> 4.27395 | BJ46: =-0.000003*CA^2 + 0.046*CA + 0.2406 -> 2.5331 | BY46: 44 | BZ46: Soya Kuru Otu | CA46: 89 | CB46: 1.9 | CC46: 15 | CD46: 10.5 | CE46: 10.5 | CG46: 1.29 | CH46: 0.3 | CI46: 35 | CJ46: 55 | CK46: 52 | CL46: 2.3 | CM46: 1.1 | CN46: 0.4 | CO46: 1.1 | CP46: 40 | CQ46: 92 | CR46: 2.2 | CS46: 8 | CT46: 1.1 | CU46: 0.15 | CV46: 0.24 | CW46: 24 | CX46: 9 | CY46: 30 | CZ46: 6 | DA46: 0 | DB46: 1
T47: 8 aylık | X47: 0 | Y47: 0 | Z47: 0 | AA47: 0 | AB47: 0 | AC47: 0 | AD47: 0 | AE47: 0 | AF47: 0 | AG47: 0 | AH47: 0 | AI47: 0 | BA47: Dişi Toklu, Erken Gebe, Tek kuzu, | BB47: =-0.00002117*CA^2 + 0.0286*CA + 0.2216 -> 1.598675 | BC47: =-0.000047*CA^2 + 0.0674*CA + 0.5732 -> 3.8257 | BD47: =2.1268*CA + 32.08 -> 138.42 | BE47: =-0.0013*CA^2 + 2.2337*CA + 23.711 -> 132.146 | BF47: =-0.00113*CA^2+ 2.1181*CA + 23.05 -> 126.13 | BG47: =-0.000845*CA^2+ 1.5568*CA + 17.249 -> 92.9765 | BH47: =-0.00188*CA^2 + 2.4602*CA + 19.739 -> 138.049 | BI47: =-0.000086*CA^2 + 0.0788*CA + 1.3829 -> 5.1079 | BJ47: =0.05*CA + 0.8 -> 3.3 | BY47: 45 | BZ47: Soya Samanı | CA47: 88 | CB47: 1.5 | CC47: 5 | CD47: 3.5 | CE47: 1.5 | CG47: 1.59 | CH47: 0.06 | CI47: 44 | CJ47: 70 | CK47: 42 | CL47: 1.9 | CM47: 0.9 | CN47: 0 | CO47: 0.9 | CP47: 54 | CQ47: 100 | CR47: 1.4 | CS47: 6 | CT47: 0.6 | CV47: 0.26 | CZ47: 2 | DA47: 0 | DB47: 1
X48: 0 | Y48: 0 | Z48: 0 | AA48: 0 | AB48: 0 | AC48: 0 | AD48: 0 | AE48: 0 | AF48: 0 | AG48: 0 | AH48: 0 | AI48: 0 | BA48: Dişi Toklu, Erken Gebe, İkiz kuzu, | BB48: =-0.000026*CA^2 + 0.0304*CA + 0.2784 -> 1.7334 | BC48: =-0.000108*CA^2 + 0.08105*CA + 0.2871 -> 4.0696 | BD48: =2.3429*CA+ 34.857 -> 152.002 | BE48: =-0.0048*CA^2 + 3.0074*CA + 5.4398 -> 143.8098 | BF48: =-0.00482*CA^2 + 2.9137*CA + 3.619 -> 137.254 | BG48: =-0.00323*CA^2 + 2.0909*CA + 4.8711 -> 101.3411 | BH48: =-0.0039*CA^2 + 2.9241*CA + 10.353 -> 146.808 | BI48: =-0.000307*CA^2 + 0.1254*CA + 1.1409 -> 6.6434 | BJ48: =-0.000212*CA^2 + 0.0894*CA + 0.1132 -> 4.0532 | BY48: 46 | BZ48: Sudan Otu, Kuru | CA48: 88 | CB48: 2.1 | CC48: 9 | CD48: 6.3 | CE48: 5.1 | CF48: 2.7 | CG48: 0.5 | CH48: 0.22 | CI48: 36 | CJ48: 67 | CK48: 57 | CL48: 2.5 | CM48: 1.3 | CN48: 0.6 | CO48: 1.3 | CP48: 43 | CQ48: 98 | CR48: 1.8 | CS48: 10 | CT48: 2.2 | CU48: 0.8 | CV48: 0.12 | CW48: 26 | CX48: 11.8 | CZ48: 10 | DA48: 0 | DB48: 1
T49: Bulunduğu Ortam | X49: 0 | Y49: 0 | Z49: 0 | AA49: 0 | AB49: 0 | AC49: 0 | AD49: 0 | AE49: 0 | AF49: 0 | AG49: 0 | AH49: 0 | AI49: 0 | BA49: Dişi Toklu, Erken Gebe, Üçüz kuzu, | BB49: =-0.000021*CA^2 + 0.0303*CA + 0.3591 -> 1.8216 | BC49: =-0.00013*CA^2 + 0.08822*CA + 0.1306 -> 4.2166 | BD49: =-0.00716*CA^2 + 3.6676*CA - 8.6303 -> 156.8497 | BE49: =-0.0065*CA^2 + 3.4408*CA - 5.9328 -> 149.8572 | BF49: =-0.00635*CA^2 + 3.3188*CA - 6.7731 -> 143.2919 | BG49: =-0.00485*CA^2 + 2.4725*CA - 6.3109 -> 105.1891 | BH49: =-0.00493*CA^2 + 3.2053*CA + 3.7059 -> 151.6459 | BI49: =-0.000305*CA^2 + 0.1454*CA + 1.0154 -> 7.5229 | BJ49: =-0.000218*CA^2 + 0.1045*CA - 0.2395 -> 4.4405 | BY49: 47 | BZ49: Şeker Kamışı Posası | CA49: 91 | CB49: 1.3 | CC49: 1 | CD49: 0.7 | CE49: 2.1 | CG49: 0.9 | CH49: 0.29 | CI49: 49 | CJ49: 86 | CK49: 36 | CL49: 1.6 | CM49: 0.9 | CN49: 0 | CO49: 0.7 | CP49: 59 | CQ49: 100 | CR49: 0.7 | CS49: 3 | CT49: 0.5 | CV49: 0.1 | CZ49: 5 | DA49: 0 | DB49: 1
T50: Ağılda | X50: 0 | Y50: 0 | Z50: 0 | AA50: 0 | AB50: 0 | AC50: 0 | AD50: 0 | AE50: 0 | AF50: 0 | AG50: 0 | AH50: 0 | AI50: 0 | BA50: Dişi Toklu, Geç Gebe, Tek kuzu, | BB50: =( -0.00001*CA^2 + 0.0251*CA + 0.4345) / 1.15 -> 1.447391304 | BC50: =-0.000128*CA^2 + 0.087*CA + 0.1533 -> 4.1833 | BD50: =-0.00676*CA^2+ 3.5932*CA - 6.5742 -> 156.1858 | BE50: =-0.0065*CA^2 + 3.432*CA - 6.3754 -> 148.9746 | BF50: =-0.00584*CA^2 + 3.2298*CA - 4.2773 -> 142.6127 | BG50: =-0.00424*CA^2 + 2.3673*CA - 2.7927 -> 104.9723 | BH50: =-0.00492*CA^2+ 3.1847*CA + 3.986 -> 150.921 | BI50: =-0.000245*CA^2 + 0.1317*CA + 0.9011 -> 6.8736 | BJ50: =-0.000216*CA^2 + 0.1021*CA - 0.3796 -> 4.1854 | BY50: 48 | BZ50: Taş Yoncası (Clover Sweet) Kuru Otu | CA50: 91 | CB50: 1.9 | CC50: 16 | CD50: 11.2 | CE50: 11.4 | CF50: 4.8 | CG50: 1.27 | CH50: 0.25 | CI50: 30 | CJ50: 50 | CK50: 53 | CL50: 2.3 | CM50: 1.2 | CN50: 0.4 | CO50: 1.2 | CP50: 38 | CQ50: 92 | CR50: 2.4 | CS50: 9 | CT50: 1.8 | CU50: 0.37 | CV50: 0.46 | CX50: 19.8 | CZ50: 20 | DA50: 0 | DB50: 1
T51: Merada | X51: 0 | Y51: 0 | Z51: 0 | AA51: 0 | AB51: 0 | AC51: 0 | AD51: 0 | AE51: 0 | AF51: 0 | AG51: 0 | AH51: 0 | AI51: 0 | BA51: Dişi Toklu, Geç Gebe, İkiz kuzu, | BB51: =-0.00001*CA^2 + 0.0251*CA + 0.4345 -> 1.6645 | BC51: =0.000104*CA^2 + 0.0541*CA + 1.7979 -> 4.7629 | BD51: =0.0089*CA^2 + 1.3093*CA + 95.608 -> 183.323 | BE51: =0.0082*CA^2 + 1.2942*CA + 89.644 -> 174.854 | BF51: =0.00856*CA^2 + 1.1223*CA + 89.964 -> 167.479 | BG51: =0.00617*CA^2+ 0.8477*CA + 65.398 -> 123.208 | BH51: =0.00371*CA^2 + 1.9456*CA + 65.361 -> 171.916 | BI51: =0.00018*CA^2 + 0.09*CA + 4.7513 -> 9.7013 | BJ51: =0.000265*CA^2 + 0.0405*CA + 2.8832 -> 5.5707 | BY51: 49 | BZ51: Tritikale Kuru Otu | CA51: 90 | CB51: 2 | CC51: 10 | CD51: 7 | CE51: 6 | CG51: 0.3 | CH51: 0.26 | CI51: 34 | CJ51: 69 | CK51: 56 | CL51: 2.5 | CM51: 1.2 | CN51: 0.5 | CO51: 1.2 | CP51: 41 | CQ51: 98 | CT51: 2.3 | CW51: 25 | CZ51: 5.5 | DA51: 0 | DB51: 1
X52: 0 | Y52: 0 | Z52: 0 | AA52: 0 | AB52: 0 | AC52: 0 | AD52: 0 | AE52: 0 | AF52: 0 | AG52: 0 | AH52: 0 | AI52: 0 | BA52: Dişi Toklu, Geç Gebe, Üçüz kuzu, | BB52: =( -0.00001*CA^2 + 0.0251*CA + 0.4345 )* 1.1 -> 1.83095 | BC52: =-0.000095*CA^2 + 0.0854*CA + 1.1739 -> 5.2064 | BD52: =-0.00378*CA^2 + 3.242*CA + 52.79 -> 205.44 | BE52: =-0.00325*CA^2 + 3.0355*CA + 52.655 -> 196.305 | BF52: =-0.00288*CA^2 + 2.8636*CA + 51.975 -> 187.955 | BG52: =-0.00236*CA^2 + 2.1436*CA + 36.891 -> 138.171 | BH52: =-0.00352*CA^2 + 3.0863*CA + 42.342 -> 187.857 | BI52: =-0.000275*CA^2 + 0.1746*CA + 3.7151 -> 11.7576 | BJ52: =-0.000143*CA^2+ 0.1092*CA + 1.572 -> 6.6745 | BY52: 50 | BZ52: Üzüm Posası, sapsız | CA52: 91 | CB52: 1.1 | CC52: 12 | CD52: 8.4 | CE52: 7.8 | CF52: 5.4 | CG52: 0.5 | CH52: 0.08 | CI52: 32 | CJ52: 53 | CK52: 30 | CL52: 1.3 | CM52: 0.8 | CN52: 0 | CO52: 0.6 | CP52: 48 | CQ52: 34 | CR52: 7.5 | CS52: 9 | CT52: 0.5 | CU52: 0.01 | CW52: 24 | CZ52: 2.5 | DA52: 0 | DB52: 1
X53: 0 | Y53: 0 | Z53: 0 | AA53: 0 | AB53: 0 | AC53: 0 | AD53: 0 | AE53: 0 | AF53: 0 | AG53: 0 | AH53: 0 | AI53: 0 | BY53: 51 | BZ53: Yem Kanyaşı (Canary grass) Kuru Otu | CA53: 91 | CB53: 1.9 | CC53: 9 | CD53: 6.3 | CE53: 5.1 | CF53: 2.3 | CG53: 0.38 | CH53: 0.25 | CI53: 32 | CJ53: 67 | CK53: 53 | CL53: 2.3 | CM53: 1.2 | CN53: 0.4 | CO53: 1.2 | CP53: 34 | CQ53: 98 | CR53: 2.7 | CS53: 8 | CT53: 2.7 | CV53: 0.14 | CW53: 18 | CX53: 5.2 | CZ53: 6 | DA53: 0 | DB53: 1
X54: 0 | Y54: 0 | Z54: 0 | AA54: 0 | AB54: 0 | AC54: 0 | AD54: 0 | AE54: 0 | AF54: 0 | AG54: 0 | AH54: 0 | AI54: 0 | BY54: 52 | BZ54: Yer Fıstığı Kabukları | CA54: 91 | CB54: 0.8 | CC54: 7 | CD54: 4.9 | CE54: 3.3 | CG54: 0.2 | CH54: 0.07 | CI54: 63 | CJ54: 74 | CK54: 22 | CL54: 1 | CM54: 0.8 | CN54: 0 | CO54: 0.4 | CP54: 65 | CQ54: 98 | CR54: 1.5 | CS54: 5 | CT54: 0.9 | CZ54: 3 | DA54: 0 | DB54: 1
X55: 0 | Y55: 0 | Z55: 0 | AA55: 0 | AB55: 0 | AC55: 0 | AD55: 0 | AE55: 0 | AF55: 0 | AG55: 0 | AH55: 0 | AI55: 0 | BY55: 53 | BZ55: Yonca Kuru Otu, Çiçek Başı | CA55: 90 | CB55: 2.1 | CC55: 19 | CD55: 13.3 | CE55: 14.1 | CF55: 3.5 | CG55: 1.41 | CH55: 0.26 | CI55: 28 | CJ55: 45 | CK55: 59 | CL55: 2.6 | CM55: 1.3 | CN55: 0.6 | CO55: 1.3 | CP55: 35 | CQ55: 92 | CR55: 2.5 | CS55: 8 | CT55: 2.5 | CU55: 0.38 | CV55: 0.28 | CW55: 22 | CX55: 28 | CY55: 26 | CZ55: 8.5 | DA55: 0 | DB55: 2
X56: 0 | Y56: 0 | Z56: 0 | AA56: 0 | AB56: 0 | AC56: 0 | AD56: 0 | AE56: 0 | AF56: 0 | AG56: 0 | AH56: 0 | AI56: 0 | BY56: 54 | BZ56: Yonca Kuru Otu, Çiçek ortası | CA56: 89 | CB56: 2.1 | CC56: 17 | CD56: 11.9 | CE56: 12.3 | CF56: 3.9 | CG56: 1.4 | CH56: 0.24 | CI56: 30 | CJ56: 47 | CK56: 58 | CL56: 2.6 | CM56: 1.3 | CN56: 0.6 | CO56: 1.3 | CP56: 36 | CQ56: 92 | CR56: 2.3 | CS56: 9 | CT56: 2 | CU56: 0.38 | CV56: 0.27 | CW56: 24 | CZ56: 8.5 | DA56: 0 | DB56: 2
X57: 0 | Y57: 0 | Z57: 0 | AA57: 0 | AB57: 0 | AC57: 0 | AD57: 0 | AE57: 0 | AF57: 0 | AG57: 0 | AH57: 0 | AI57: 0 | BY57: 55 | BZ57: Yonca Kuru Otu, Olgun | CA57: 88 | CB57: 1.8 | CC57: 13 | CD57: 9.1 | CE57: 8.7 | CF57: 3.9 | CG57: 1.18 | CH57: 0.19 | CI57: 38 | CJ57: 59 | CK57: 50 | CL57: 2.2 | CM57: 1.1 | CN57: 0.3 | CO57: 1.1 | CP57: 45 | CQ57: 92 | CR57: 1.3 | CS57: 8 | CT57: 1.5 | CU57: 0.35 | CV57: 0.21 | CW57: 23 | CX57: 2.4 | CZ57: 8.5 | DA57: 0 | DB57: 2
A58: =IF(B5=0,0,IF(C5<=0,0,A5)) -> 1 | B58: =IF(B5=0,0,IF(C5<=0,0,B5)) -> Arpa Samanı | C58: =IF(B5=0,0,IF(C5<=0,0,C5)) -> 0.8561202809 | X58: 0 | Y58: 0 | Z58: 0 | AA58: 0 | AB58: 0 | AC58: 0 | AD58: 0 | AE58: 0 | AF58: 0 | AG58: 0 | AH58: 0 | AI58: 0 | BY58: 56 | BZ58: Yonca Kuru Otu, Tam Çiçeklenmiş | CA58: 88 | CB58: 2 | CC58: 16 | CD58: 11.2 | CE58: 11.4 | CF58: 4 | CG58: 1.2 | CH58: 0.23 | CI58: 34 | CJ58: 52 | CK58: 54 | CL58: 2.4 | CM58: 1.2 | CN58: 0.4 | CO58: 1.2 | CP58: 40 | CQ58: 92 | CR58: 2 | CS58: 8 | CT58: 1.7 | CU58: 0.37 | CV58: 0.25 | CW58: 23 | CX58: 13 | CZ58: 8.5 | DA58: 0 | DB58: 2
A59: 0 | B59: 0 | C59: 0 | X59: 0 | Y59: 0 | Z59: 0 | AA59: 0 | AB59: 0 | AC59: 0 | AD59: 0 | AE59: 0 | AF59: 0 | AG59: 0 | AH59: 0 | AI59: 0 | BY59: 57 | BZ59: Yonca Küpleri | CA59: 91 | CB59: 2.1 | CC59: 18 | CD59: 12.6 | CE59: 13.2 | CF59: 5.4 | CG59: 1.3 | CH59: 0.23 | CI59: 29 | CJ59: 46 | CK59: 57 | CL59: 2.5 | CM59: 1.3 | CN59: 0.6 | CO59: 1.3 | CP59: 36 | CQ59: 40 | CR59: 2 | CS59: 11 | CT59: 1.9 | CU59: 0.37 | CV59: 0.33 | CW59: 20 | CZ59: 10 | DA59: 0 | DB59: 2
A60: 4 | B60: Arpa, Tane | C60: 0.1549185277 | X60: 0 | Y60: 0 | Z60: 0 | AA60: 0 | AB60: 0 | AC60: 0 | AD60: 0 | AE60: 0 | AF60: 0 | AG60: 0 | AH60: 0 | AI60: 0 | BY60: 58 | BZ60: Yonca Sapları | CA60: 89 | CB60: 1.7 | CC60: 11 | CD60: 7.7 | CE60: 6.9 | CF60: 4.8 | CG60: 0.9 | CH60: 0.18 | CI60: 44 | CJ60: 68 | CK60: 47 | CL60: 2.1 | CM60: 1 | CN60: 0.2 | CO60: 1 | CP60: 51 | CQ60: 100 | CR60: 1.3 | CS60: 6 | CT60: 2.5 | CZ60: 8 | DA60: 0 | DB60: 2
A61: 6 | B61: PAMUK TOHUMU KÜSPESİ, SOLVENT, % 25 | C61: 0.1236982687 | BY61: 59 | BZ61: Yosun, Kurutulmuş | CA61: 91 | CB61: 1.2 | CC61: 7 | CD61: 4.9 | CE61: 3.3 | CG61: 2.72 | CH61: 0.31 | CI61: 7 | CK61: 32 | CL61: 1.4 | CM61: 0.8 | CN61: 0 | CO61: 0.6 | CP61: 10 | CR61: 0.5 | CS61: 39 | CZ61: 100 | DA61: 0 | DB61: 1
A62: 0 | B62: 0 | C62: 0 | BY62: 60 | BZ62: Yulaf Kavuzu | CA62: 93 | CB62: 1.4 | CC62: 4 | CD62: 2.8 | CE62: 0.6 | CF62: 1 | CG62: 0.16 | CH62: 0.15 | CI62: 32 | CJ62: 75 | CK62: 40 | CL62: 1.8 | CM62: 0.9 | CN62: 0 | CO62: 0.8 | CP62: 40 | CQ62: 90 | CR62: 1.5 | CS62: 7 | CT62: 0.6 | CU62: 0.08 | CV62: 0.14 | CW62: 31 | CZ62: 3.5 | DA62: 0 | DB62: 1
A63: 7 | B63: Mermer Tozu | C63: 0.001307993208 | BY63: 61 | BZ63: Yulaf Kuru Otu | CA63: 90 | CB63: 2 | CC63: 10 | CD63: 7 | CE63: 6 | CF63: 2.5 | CG63: 0.4 | CH63: 0.27 | CI63: 31 | CJ63: 63 | CK63: 54 | CL63: 2.4 | CM63: 1.2 | CN63: 0.4 | CO63: 1.2 | CP63: 39 | CQ63: 98 | CR63: 2.3 | CS63: 8 | CT63: 1.6 | CU63: 0.42 | CV63: 0.21 | CW63: 28 | CX63: 5.6 | CZ63: 6 | DA63: 0 | DB63: 2
A64: 7 | B64: Tuz | C64: 0.001 | BY64: 62 | BZ64: Yulaf Samanı | CA64: 91 | CB64: 1.7 | CC64: 4 | CD64: 2.8 | CE64: 0.6 | CF64: 1.6 | CG64: 0.24 | CH64: 0.07 | CI64: 41 | CJ64: 73 | CK64: 48 | CL64: 2.1 | CM64: 1.1 | CN64: 0.2 | CO64: 1 | CP64: 48 | CQ64: 98 | CR64: 2.3 | CS64: 8 | CT64: 2.4 | CU64: 0.78 | CV64: 0.22 | CW64: 6 | CX64: 800 | CZ64: 3 | DA64: 0 | DB64: 1
A65: 7 | B65: Vitamin-Mineral Karması | C65: 0.001 | BY65: 63 | BZ65: Yulaf, Değirmen Kalıntıları | CA65: 89 | CB65: 1.2 | CC65: 8 | CD65: 5.6 | CE65: 4.2 | CG65: 0.12 | CH65: 0.23 | CI65: 25 | CK65: 33 | CL65: 1.5 | CM65: 0.8 | CN65: 0 | CO65: 0.7 | CP65: 37 | CR65: 2.6 | CS65: 6 | CT65: 0.6 | CV65: 0.24 | CZ65: 5 | DA65: 0 | DB65: 1
A66: 0 | B66: 0 | C66: 0 | BY66: 64
A67: 0 | B67: 0 | C67: 0 | BY67: 65
A68: 0 | B68: 0 | C68: 0 | BY68: 66
A69: 0 | B69: 0 | C69: 0 | BY69: 67
A70: 0 | B70: 0 | C70: 0 | BY70: 68
A71: 0 | B71: 0 | C71: 0 | BY71: 69
A72: 0 | B72: 0 | C72: 0 | BY72: 70
A73: 0 | B73: 0 | C73: 0 | BY73: 71
A74: 0 | B74: 0 | C74: 0 | BY74: 72
A75: 0 | B75: 0 | C75: 0 | BY75: 73
A76: 0 | B76: 0 | C76: 0 | BY76: 74
A77: 0 | B77: 0 | C77: 0 | BY77: 75
A78: 0 | B78: 0 | C78: 0 | BZ78: SULU KABA YEMLER | CA78: KM,% | CB78: ME, Mcal/kg | CC78: HP,% | CD78: MP,% | CE78: DIP,% | CF78: RUP,% | CG78: Ca,% | CH78: P,% | CI78: HS,% | CJ78: NDF,% | CK78: TSBM,% | CL78: SE, Mcal/kg | CM78: NEyp, Mcal/kg | CN78: NEb, Mcal/kg | CO78: NEl, Mcal/kg | CP78: ADF,% | CQ78: eNDF,% | CR78: HY,% | CS78: HK,% | CT78: K,% | CU78: Cl,% | CV78: S,% | CW78: Zn,ppm | CX78: VitA, RE/kg | CY78: VitE,ppm | CZ78: Fiyat,TL | DA78: En az | DB78: En çok
A79: 0 | B79: 0 | C79: 0 | BY79: 1 | BZ79: Adi Japon Üçgülü (Lespedeza), Yaş, Çiçek Başı | CA79: 25 | CB79: 2.2 | CC79: 16 | CD79: 11.2 | CE79: 11.4 | CF79: 8 | CG79: 1.2 | CH79: 0.24 | CI79: 32 | CK79: 60 | CL79: 2.6 | CM79: 1.3 | CN79: 0.7 | CO79: 1.3 | CR79: 2 | CS79: 10 | CT79: 1.1 | CV79: 0.21 | CZ79: 11 | DA79: 0 | DB79: 2
A80: 0 | B80: 0 | C80: 0 | BY80: 2 | BZ80: Akasya Yaprakları | CA80: 30 | CB80: 0.69 | CC80: 5 | CD80: 0.8 | CE80: 1.2 | CK80: 19 | CL80: 0.84 | CM80: 0.77 | CN80: 0 | CZ80: 11 | DA80: 0 | DB80: 1
A81: 0 | B81: 0 | C81: 0 | BY81: 3 | BZ81: Akçaağaç Yaprakları | CJ81: 58.9 | CP81: 43.9 | CZ81: 11 | DA81: 0 | DB81: 1
A82: 0 | B82: 0 | C82: 0 | BY82: 4 | BZ82: Ardıç Yaprakları | CA82: 52 | CB82: 2.31 | CC82: 6.5 | CD82: 1.8 | CE82: 2.6 | CH82: 0.08 | CK82: 64 | CL82: 2.82 | CM82: 1.41 | CN82: 0.78 | CZ82: 11 | DA82: 0 | DB82: 1
A83: 0 | B83: 0 | C83: 0 | BY83: 5 | BZ83: At kestanesi | CA83: 43 | CC83: 15.9 | CJ83: 38.2 | CP83: 25.3 | CS83: 9 | CZ83: 8 | DA83: 0 | DB83: 0.1
BY84: 6 | BZ84: Ayçiçeği Bitkisi, Geç Büyüme Dönemi | CA84: 12 | CB84: 2.31 | CC84: 8.3 | CD84: 3 | CE84: 4.3 | CK84: 64 | CL84: 2.82 | CM84: 1.41 | CN84: 0.78 | CZ84: 10 | DA84: 0 | DB84: 2
BY85: 7 | BZ85: Beyaz Üçgül (Clover Ladino), Yaş | CA85: 19 | CB85: 2.5 | CC85: 25 | CD85: 17.5 | CE85: 19.5 | CF85: 5 | CG85: 1.27 | CH85: 0.38 | CI85: 14 | CJ85: 35 | CK85: 69 | CL85: 3 | CM85: 1.6 | CN85: 0.9 | CO85: 1.5 | CP85: 33 | CQ85: 41 | CR85: 4.8 | CS85: 11 | CT85: 2.4 | CV85: 0.2 | CW85: 20 | CX85: 70.6 | CZ85: 11 | DA85: 0 | DB85: 1
BY86: 8 | BZ86: Bezelye Asması | CA86: 14 | CB86: 2.42 | CC86: 27.4 | CD86: 15.5 | CE86: 22.1 | CK86: 67 | CL86: 2.95 | CM86: 1.5 | CN86: 0.88 | CZ86: 10 | DA86: 0 | DB86: 1
BY87: 9 | BZ87: Böğürtlen, Eylül | CA87: 44 | CC87: 8.2 | CK87: 73 | CZ87: 11 | DA87: 0 | DB87: 1
BY88: 10 | BZ88: Böğürtlen, Temmuz | CA88: 45 | CC88: 8.6 | CK88: 72 | CZ88: 11 | DA88: 0 | DB88: 1
BY89: 11 | BZ89: Börülce | CA89: 15 | CB89: 2.31 | CC89: 16.2 | CD89: 8.2 | CE89: 11.7 | CH89: 0.28 | CK89: 64 | CL89: 2.82 | CM89: 1.41 | CN89: 0.78 | CZ89: 11 | DA89: 0 | DB89: 1
BY90: 12 | BZ90: Brom Otu (Bromegrass), Yaş, Körpe | CA90: 30 | CB90: 2.3 | CC90: 15 | CD90: 10.5 | CE90: 10.5 | CF90: 33 | CG90: 0.45 | CH90: 0.34 | CI90: 28 | CJ90: 54 | CK90: 64 | CL90: 2.8 | CM90: 1.4 | CN90: 0.8 | CO90: 1.4 | CP90: 33 | CQ90: 40 | CR90: 4.1 | CS90: 10 | CT90: 2.3 | CV90: 0.21 | CW90: 20 | CX90: 38.4 | CZ90: 11 | DA90: 0 | DB90: 2
BY91: 13 | BZ91: Buğday, Yaş, Mera | CA91: 21 | CB91: 2.6 | CC91: 20 | CD91: 14 | CE91: 15 | CF91: 3.2 | CG91: 0.35 | CH91: 0.36 | CI91: 18 | CJ91: 50 | CK91: 71 | CL91: 3.1 | CM91: 1.6 | CN91: 1 | CO91: 1.6 | CP91: 30 | CQ91: 41 | CR91: 4 | CS91: 13 | CT91: 3.1 | CU91: 0.67 | CV91: 0.22 | CZ91: 14 | DA91: 0 | DB91: 2
BY92: 14 | BZ92: Çayır Kelp Kuyruğu (Timothy), Yaş, Çiçeklenme Öncesi | CA92: 26 | CB92: 2.3 | CC92: 11 | CD92: 7.7 | CE92: 6.9 | CF92: 2.2 | CG92: 0.4 | CH92: 0.28 | CI92: 31 | CJ92: 59 | CK92: 64 | CL92: 2.8 | CM92: 1.4 | CN92: 0.8 | CO92: 1.4 | CP92: 36 | CQ92: 41 | CR92: 3.8 | CS92: 7 | CT92: 1.9 | CU92: 0.57 | CV92: 0.15 | CW92: 28 | CX92: 35.8 | CY92: 111 | CZ92: 11 | DA92: 0 | DB92: 2
BY93: 15 | BZ93: Çayır Salkım Otu (Bluegrass), Yaş, Çiç.Baş. | CA93: 36 | CB93: 2.5 | CC93: 15 | CD93: 10.5 | CE93: 10.5 | CF93: 3 | CG93: 0.37 | CH93: 0.3 | CI93: 27 | CJ93: 60 | CK93: 69 | CL93: 3 | CM93: 1.6 | CN93: 0.9 | CO93: 1.5 | CP93: 32 | CQ93: 41 | CR93: 3.9 | CS93: 7 | CT93: 1.9 | CU93: 0.42 | CV93: 0.19 | CW93: 25 | CX93: 43.8 | CZ93: 11 | DA93: 0 | DB93: 2
BY94: 16 | BZ94: Çayır Üçgülü (Clover Red), Yaş | CA94: 24 | CB94: 2.3 | CC94: 18 | CD94: 12.6 | CE94: 13.2 | CF94: 3.8 | CG94: 1.7 | CH94: 0.3 | CI94: 24 | CJ94: 44 | CK94: 64 | CL94: 2.8 | CM94: 1.4 | CN94: 0.8 | CO94: 1.4 | CP94: 33 | CQ94: 41 | CR94: 4 | CS94: 9 | CT94: 2 | CU94: 0.6 | CV94: 0.17 | CW94: 23 | CX94: 40.4 | CZ94: 11 | DA94: 0 | DB94: 2
BY95: 17 | BZ95: Çitlembik Sürgünleri | CA95: 56 | CB95: 1.56 | CC95: 7.8 | CD95: 2.7 | CE95: 3.8 | CH95: 0.08 | CK95: 43 | CL95: 1.9 | CM95: 0.94 | CN95: 0 | CZ95: 11 | DA95: 0 | DB95: 1
BY96: 18 | BZ96: Dişbudak Yaprakları, Taze | CA96: 44 | CC96: 10.9 | CJ96: 51.2 | CP96: 38.4 | CS96: 10 | CZ96: 11 | DA96: 0 | DB96: 1
BY97: 19 | BZ97: Domuz Ayrığı (Orchardgrass), Yaş, Çiçek Başı | CA97: 24 | CB97: 2.4 | CC97: 14 | CD97: 9.8 | CE97: 9.6 | CF97: 3.2 | CG97: 0.33 | CH97: 0.39 | CI97: 30 | CJ97: 54 | CK97: 65 | CL97: 2.9 | CM97: 1.5 | CN97: 0.8 | CO97: 1.5 | CP97: 32 | CQ97: 41 | CR97: 4 | CS97: 9 | CT97: 2.7 | CU97: 0.08 | CV97: 0.2 | CW97: 21 | CX97: 60.4 | CY97: 436 | CZ97: 11 | DA97: 0 | DB97: 2
BY98: 20 | BZ98: Dut Sürgünleri | CA98: 40 | CB98: 2.57 | CC98: 18.1 | CD98: 9.4 | CE98: 13.4 | CH98: 0.24 | CK98: 71 | CL98: 3.13 | CM98: 1.61 | CN98: 1 | CS98: 15 | CZ98: 11 | DA98: 0 | DB98: 1
BY99: 21 | BZ99: Erik Yaprakları | CA99: 30 | CB99: 1.56 | CC99: 7.8 | CK99: 43 | CL99: 1.9 | CM99: 0.94 | CN99: 0 | CZ99: 11 | DA99: 0 | DB99: 1
BY100: 22 | BZ100: Fiğ Bitkisi | CA100: 20 | CB100: 2.13 | CC100: 18.6 | CD100: 9.7 | CE100: 13.9 | CH100: 0.34 | CI100: 28 | CK100: 59 | CL100: 2.6 | CM100: 1.28 | CN100: 0.62 | CZ100: 6 | DA100: 0 | DB100: 2
BY101: 23 | BZ101: Hanımeli Yaprakları | CA101: 33 | CB101: 2.5 | CC101: 10 | CD101: 4.1 | CE101: 5.9 | CH101: 0.11 | CJ101: 20 | CK101: 69 | CL101: 3.04 | CM101: 1.55 | CN101: 0.94 | CZ101: 11 | DA101: 0 | DB101: 1
BY102: 24 | BZ102: Havuç Yaprakları | CA102: 16 | CB102: 2.6 | CC102: 13 | CD102: 9.1 | CE102: 8.7 | CG102: 1.94 | CH102: 0.19 | CI102: 18 | CJ102: 45 | CK102: 73 | CL102: 3.2 | CM102: 1.7 | CN102: 1.1 | CO102: 1.7 | CP102: 23 | CQ102: 41 | CR102: 3.8 | CS102: 15 | CT102: 1.9 | CZ102: 1 | DA102: 0 | DB102: 1
BY103: 25 | BZ103: Hurma Yaprakları | CA103: 48 | CB103: 1.95 | CC103: 11.8 | CD103: 5.3 | CE103: 7.6 | CH103: 0.11 | CK103: 54 | CL103: 2.38 | CM103: 1.16 | CN103: 0.43 | CZ103: 1 | DA103: 0 | DB103: 1
BY104: 26 | BZ104: Hünnap Sürgünleri | CA104: 32 | CB104: 1.12 | CC104: 8.6 | CD104: 2.2 | CE104: 3.1 | CK104: 31 | CL104: 1.37 | CM104: 0.79 | CN104: 0 | CZ104: 1 | DA104: 0 | DB104: 1
BY105: 27 | BZ105: İncir Yaprakları | CA105: 30 | CB105: 1.95 | CC105: 11.2 | CD105: 4.7 | CE105: 6.7 | CH105: 0.71 | CK105: 54 | CL105: 2.38 | CM105: 1.16 | CN105: 0.43 | CZ105: 11 | DA105: 0 | DB105: 1
BY106: 28 | BZ106: Kaktüs | CA106: 26 | CB106: 2.3 | CC106: 5 | CD106: 3.5 | CE106: 1.5 | CG106: 3.5 | CH106: 0.1 | CI106: 18 | CJ106: 29 | CK106: 63 | CL106: 2.8 | CM106: 1.4 | CN106: 0.7 | CO106: 1.4 | CP106: 23 | CR106: 2.1 | CS106: 17 | CT106: 1.7 | CV106: 0.2 | CZ106: 11 | DA106: 0 | DB106: 2
BY107: 29 | BZ107: Kamışsı Yumak, Yaş | CA107: 29 | CB107: 2.3 | CC107: 15 | CD107: 10.5 | CE107: 10.5 | CF107: 3 | CG107: 0.48 | CH107: 0.37 | CI107: 25 | CJ107: 64 | CK107: 64 | CL107: 2.8 | CM107: 1.4 | CN107: 0.8 | CO107: 1.4 | CP107: 32 | CQ107: 40 | CR107: 5.5 | CS107: 9 | CT107: 2.5 | CV107: 0.18 | CW107: 22 | CZ107: 11 | DA107: 0 | DB107: 1
BY108: 30 | BZ108: Kır Ayrığı (Wheatgrass), Yaş, Çiçek Başı | CA108: 37 | CB108: 2.2 | CC108: 11 | CD108: 7.7 | CE108: 6.9 | CF108: 2.8 | CG108: 0.46 | CH108: 0.32 | CI108: 26 | CJ108: 50 | CK108: 60 | CL108: 2.6 | CM108: 1.3 | CN108: 0.7 | CO108: 1.3 | CP108: 28 | CQ108: 41 | CR108: 1.6 | CS108: 7 | CT108: 2.4 | CX108: 42.6 | CZ108: 11 | DA108: 0 | DB108: 2
BY109: 31 | BZ109: Kır Ayrığı (Wheatgrass), Yaş, Tam Çiçeklenme | CA109: 50 | CB109: 2 | CC109: 10 | CD109: 7 | CE109: 6 | CF109: 3.3 | CG109: 0.39 | CH109: 0.28 | CI109: 33 | CJ109: 65 | CK109: 55 | CL109: 2.4 | CM109: 1.2 | CN109: 0.5 | CO109: 1.2 | CP109: 36 | CQ109: 41 | CR109: 1.6 | CS109: 7 | CT109: 2.1 | CZ109: 11 | DA109: 0 | DB109: 2
BY110: 32 | BZ110: Marul | CA110: 5 | CB110: 2.53 | CC110: 22 | CD110: 11.9 | CE110: 17 | CK110: 70 | CL110: 3.09 | CM110: 1.58 | CN110: 0.97 | CS110: 23 | CZ110: 11 | DA110: 0 | DB110: 1
BY111: 33 | BZ111: Meşe Sürgünleri | CA111: 36 | CB111: 1.95 | CC111: 20.3 | CD111: 10.9 | CE111: 15.5 | CH111: 0.38 | CJ111: 34 | CK111: 54 | CL111: 2.38 | CM111: 1.16 | CN111: 0.43 | CZ111: 11 | DA111: 0 | DB111: 1
BY112: 34 | BZ112: Meşe Sürgünleri | CA112: 32 | CB112: 2.6 | CC112: 17.4 | CD112: 9 | CE112: 12.8 | CH112: 0.31 | CJ112: 23 | CK112: 72 | CL112: 3.17 | CM112: 1.64 | CN112: 1.03 | CZ112: 11 | DA112: 0 | DB112: 1
BY113: 35 | BZ113: Meşe Yaprakları | CA113: 50 | CB113: 1.66 | CC113: 10.2 | CD113: 4.3 | CE113: 6.1 | CH113: 0.11 | CJ113: 45 | CK113: 46 | CL113: 2.03 | CM113: 0.99 | CN113: 0.1 | CZ113: 11 | DA113: 0 | DB113: 1
BY114: 36 | BZ114: Mimoza Sürgünleri | CA114: 26 | CB114: 2.5 | CC114: 20.6 | CD114: 11.1 | CE114: 15.8 | CH114: 0.17 | CK114: 69 | CL114: 3.04 | CM114: 1.55 | CN114: 0.94 | CZ114: 11 | DA114: 0 | DB114: 1
BY115: 37 | BZ115: Muz Yaprakları, Hasat Sonrası | CA115: 24 | CB115: 2.6 | CC115: 17.9 | CD115: 9.5 | CE115: 13.6 | CG115: 1.14 | CH115: 0.19 | CK115: 72 | CR115: 8.2 | CS115: 10 | CZ115: 11 | DA115: 0 | DB115: 1
BY116: 38 | BZ116: Muz Yaprakları, Körpe | CA116: 18 | CB116: 2.48 | CC116: 20 | CD116: 10.9 | CE116: 15.6 | CG116: 0.24 | CH116: 0.21 | CK116: 69 | CR116: 4.1 | CS116: 8 | CZ116: 11 | DA116: 0 | DB116: 1
BY117: 39 | BZ117: Muz Yaprakları, Taze | CA117: 19 | CB117: 1.81 | CC117: 15.7 | CD117: 4.7 | CE117: 6.7 | CH117: 0.7 | CK117: 50 | CL117: 2 | CM117: 1.07 | CN117: 0.28 | CZ117: 11 | DA117: 0 | DB117: 1
BY118: 40 | BZ118: OTLAK, AĞUSTOS | CA118: 20 | CB118: 2.15 | CC118: 9.7 | CD118: 6 | CE118: 5.2 | CF118: 3.5 | CG118: 0.26 | CH118: 0.15 | CI118: 30 | CJ118: 65 | CK118: 50 | CL118: 2.1 | CM118: 1 | CN118: 0.3 | CO118: 1 | CP118: 40 | CQ118: 41 | CR118: 1.6 | CS118: 7 | CT118: 2.1 | CZ118: 0 | DB118: 4
BY119: 41 | BZ119: OTLAK, EYLÜL | CA119: 20 | CB119: 2.07 | CC119: 6.9 | CD119: 3 | CE119: 2 | CF119: 4 | CG119: 0.26 | CH119: 0.15 | CI119: 30 | CJ119: 70 | CK119: 48 | CL119: 1.6 | CM119: 0.8 | CN119: 0.2 | CO119: 0.8 | CP119: 42 | CQ119: 41 | CR119: 1.6 | CS119: 7 | CT119: 2.1 | CZ119: 0 | DB119: 4
BY120: 42 | BZ120: OTLAK, HAZİRAN | CA120: 20 | CB120: 2.35 | CC120: 11 | CD120: 7.7 | CE120: 6.9 | CF120: 2.2 | CG120: 0.26 | CH120: 0.15 | CI120: 25 | CJ120: 59 | CK120: 64 | CL120: 2.8 | CM120: 1.4 | CN120: 0.8 | CO120: 1.4 | CP120: 36 | CQ120: 41 | CR120: 3.8 | CS120: 7 | CT120: 1.9 | CU120: 0.57 | CV120: 0.15 | CW120: 28 | CX120: 35.8 | CY120: 111 | CZ120: 0 | DB120: 4
BY121: 43 | BZ121: OTLAK, KIŞ | CA121: 80 | CB121: 1.83 | CC121: 4.7 | CD121: 2 | CE121: 1 | CF121: 4 | CG121: 0.26 | CH121: 0.15 | CI121: 40 | CJ121: 72 | CK121: 45 | CL121: 1.3 | CM121: 0.5 | CN121: 0.1 | CO121: 0.6 | CP121: 45 | CQ121: 41 | CR121: 1.6 | CS121: 7 | CT121: 2.1 | CZ121: 0 | DB121: 4
BY122: 44 | BZ122: OTLAK, TEMMUZ | CA122: 20 | CB122: 2.25 | CC122: 10.5 | CD122: 7 | CE122: 6 | CF122: 3.3 | CG122: 0.26 | CH122: 0.15 | CI122: 25 | CJ122: 65 | CK122: 55 | CL122: 2.4 | CM122: 1.2 | CN122: 0.5 | CO122: 1.2 | CP122: 36 | CQ122: 41 | CR122: 1.6 | CS122: 7 | CT122: 2.1 | CZ122: 0 | DB122: 4
BY123: 45 | BZ123: Sarı Çiçekli Gazal Boynuzu (Birdsfoot), Yaş | CA123: 22 | CB123: 2.4 | CC123: 21 | CD123: 14.7 | CE123: 15.9 | CF123: 4.2 | CG123: 1.78 | CH123: 0.25 | CI123: 21 | CJ123: 47 | CK123: 66 | CL123: 2.9 | CM123: 1.5 | CN123: 0.8 | CO123: 1.5 | CP123: 31 | CQ123: 41 | CR123: 4.4 | CS123: 9 | CT123: 2.6 | CV123: 0.25 | CW123: 31 | CZ123: 11 | DA123: 0 | DB123: 2
BY124: 46 | BZ124: Söğüt Sürgünleri | CA124: 41 | CB124: 2.2 | CC124: 9.8 | CI124: 27.2 | CJ124: 48.1 | CP124: 39.9 | CS124: 7 | CZ124: 11 | DA124: 0 | DB124: 1
BY125: 47 | BZ125: Sudan Otu, Taze, Körpe | CA125: 18 | CB125: 2.5 | CC125: 17 | CD125: 11.9 | CE125: 12.3 | CG125: 0.46 | CH125: 0.36 | CI125: 23 | CJ125: 55 | CK125: 70 | CL125: 3.1 | CM125: 1.6 | CN125: 1 | CO125: 1.6 | CP125: 29 | CQ125: 41 | CR125: 3.9 | CS125: 9 | CT125: 2 | CV125: 0.11 | CW125: 24 | CX125: 39.6 | CZ125: 11 | DA125: 0 | DB125: 2
BY126: 48 | BZ126: Sumak Sürgünleri | CA126: 40 | CB126: 2.78 | CC126: 13.7 | CD126: 6.5 | CE126: 9.3 | CH126: 0.2 | CK126: 77 | CL126: 3.4 | CM126: 1.79 | CN126: 1.17 | CZ126: 11 | DA126: 0 | DB126: 1
BY127: 49 | BZ127: Şalgam Yaprakları | CA127: 18 | CB127: 2.5 | CC127: 16 | CD127: 11.2 | CE127: 11.4 | CG127: 3.2 | CH127: 0.31 | CI127: 10 | CK127: 69 | CL127: 3 | CM127: 1.6 | CN127: 0.9 | CO127: 1.5 | CP127: 13 | CR127: 2.6 | CS127: 13 | CT127: 3 | CU127: 1.8 | CV127: 0.27 | CZ127: 11 | DA127: 0 | DB127: 2
BY128: 50 | BZ128: Şeker Pancarı Yaprakları | CA128: 20 | CB128: 2.1 | CC128: 14 | CD128: 9.8 | CE128: 9.6 | CG128: 1.2 | CH128: 0.23 | CI128: 10 | CJ128: 25 | CK128: 58 | CL128: 2.6 | CM128: 1.3 | CN128: 0.6 | CO128: 1.3 | CP128: 14 | CQ128: 41 | CR128: 1.5 | CS128: 24 | CT128: 5.1 | CU128: 0.2 | CV128: 0.45 | CW128: 20 | CZ128: 2.5 | DA128: 0 | DB128: 2
BY129: 51 | BZ129: Şerbetçiotu Yaprakları | CA129: 37 | CB129: 1.8 | CC129: 15 | CD129: 10.5 | CE129: 10.5 | CG129: 2.8 | CH129: 0.64 | CI129: 15 | CK129: 49 | CL129: 2.2 | CM129: 1.1 | CN129: 0.2 | CO129: 1.1 | CR129: 3.6 | CS129: 35 | CZ129: 11 | DA129: 0 | DB129: 2
BY130: 52 | BZ130: Şeytan Otu (Pangolagrass) Yaprakları | CA130: 20 | CB130: 2.25 | CC130: 17.7 | CD130: 9.5 | CE130: 13.5 | CK130: 62 | CR130: 2.9 | CS130: 8 | CZ130: 11 | DA130: 0 | DB130: 2
BY131: 53 | BZ131: Şeytan Otu (Pangolagrass) Yaprakları | CA131: 26 | CB131: 2.13 | CC131: 12.9 | CD131: 6.3 | CE131: 9 | CG131: 0.4 | CH131: 0.23 | CK131: 59 | CR131: 1.7 | CS131: 8 | CZ131: 11 | DA131: 0 | DB131: 2
BY132: 54 | BZ132: Yer Elması Yaprakları | CA132: 27 | CB132: 2.2 | CC132: 6 | CD132: 4.2 | CE132: 2.4 | CG132: 1.62 | CH132: 0.11 | CI132: 18 | CJ132: 41 | CK132: 61 | CL132: 2.7 | CM132: 1.4 | CN132: 0.7 | CO132: 1.3 | CP132: 30 | CQ132: 40 | CR132: 1.1 | CS132: 10 | CT132: 1.4 | CZ132: 1 | DA132: 0 | DB132: 2
BY133: 55 | BZ133: Yerelması Yaprakları | CA133: 22 | CB133: 2.24 | CC133: 20.7 | CD133: 11.3 | CE133: 16.2 | CK133: 62 | CR133: 2.3 | CS133: 16 | CZ133: 1 | DA133: 0 | DB133: 2
BY134: 56 | BZ134: Yerfıstığı Asması, Hasat Sonrası | CA134: 18 | CB134: 2.12 | CC134: 15.3 | CD134: 7.2 | CE134: 10.3 | CG134: 0.98 | CH134: 0.36 | CK134: 59 | CR134: 2.6 | CS134: 5 | CZ134: 1 | DA134: 0 | DB134: 2
BY135: 57 | BZ135: Yerfıstığı Asması, Körpe | CA135: 16 | CB135: 2.25 | CC135: 20.9 | CD135: 10.9 | CE135: 15.5 | CK135: 62 | CR135: 2 | CS135: 8 | CZ135: 1 | DA135: 0 | DB135: 2
BY136: 58 | BZ136: Yonca, Yaş | CA136: 24 | CB136: 2.2 | CC136: 19 | CD136: 13.3 | CE136: 14.1 | CF136: 3.4 | CG136: 1.35 | CH136: 0.27 | CI136: 27 | CJ136: 46 | CK136: 61 | CL136: 2.7 | CM136: 1.4 | CN136: 0.7 | CO136: 1.3 | CP136: 35 | CQ136: 41 | CR136: 3 | CS136: 9 | CT136: 2.6 | CU136: 0.4 | CV136: 0.29 | CW136: 18 | CX136: 37 | CZ136: 5 | DA136: 0 | DB136: 1
BY137: 59
BY138: 60
BY139: 61
BY140: 62
BY141: 63
BY142: 64
BY143: 65
BY144: 66
BY145: 67
BY146: 68
BY147: 69
BY148: 70
BY149: 71
BY150: 72
BY151: 73
BY152: 74
BY153: 75
BZ154: SİLAJLAR | CA154: KM,% | CB154: ME, Mcal/kg | CC154: HP,% | CD154: MP,% | CE154: DIP,% | CF154: RUP,% | CG154: Ca,% | CH154: P,% | CI154: HS,% | CJ154: NDF,% | CK154: TSBM,% | CL154: SE, Mcal/kg | CM154: NEyp, Mcal/kg | CN154: NEb, Mcal/kg | CO154: NEl, Mcal/kg | CP154: ADF,% | CQ154: eNDF,% | CR154: HY,% | CS154: HK,% | CT154: K,% | CU154: Cl,% | CV154: S,% | CW154: Zn,ppm | CX154: VitA, RE/kg | CY154: VitE,ppm | CZ154: Fiyat,TL | DA154: En az | DB154: En çok
BY155: 1 | BZ155: Arpa Silajı | CA155: 35 | CB155: 2.1 | CC155: 12 | CD155: 8.4 | CE155: 7.8 | CF155: 2.6 | CG155: 0.46 | CH155: 0.3 | CI155: 34 | CJ155: 58 | CK155: 59 | CL155: 2.6 | CM155: 1.3 | CN155: 0.6 | CO155: 1.3 | CP155: 37 | CQ155: 61 | CR155: 3 | CS155: 9 | CT155: 2.4 | CV155: 0.22 | CW155: 28 | CZ155: 3.5 | DA155: 0 | DB155: 2
BY156: 2 | BZ156: Arpa Silajı, Olgun | CA156: 35 | CB156: 2.1 | CC156: 12 | CD156: 8.4 | CE156: 7.8 | CF156: 3 | CG156: 0.3 | CH156: 0.2 | CI156: 30 | CJ156: 50 | CK156: 58 | CL156: 2.6 | CM156: 1.3 | CN156: 0.6 | CO156: 1.3 | CP156: 34 | CQ156: 61 | CR156: 3.5 | CS156: 9 | CT156: 1.5 | CV156: 0.15 | CW156: 25 | CZ156: 3.5 | DA156: 0 | DB156: 2
BY157: 3 | BZ157: Ayçiçeği Silajı, Geç Çiçeklenme | CA157: 26 | CB157: 1.56 | CC157: 8.2 | CD157: 5.6 | CE157: 3.7 | CI157: 38.2 | CK157: 43 | CL157: 1.9 | CM157: 0.94 | CN157: 0 | CO157: 0.94 | CR157: 2.1 | CS157: 15 | CZ157: 4 | DA157: 0 | DB157: 2
BY158: 4 | BZ158: Ayçiçeği Silajı, Süt Olumu | CA158: 21 | CB158: 1.83 | CC158: 9.7 | CD158: 6.3 | CE158: 5 | CI158: 29.4 | CK158: 51 | CL158: 2.23 | CM158: 1.08 | CN158: 0.3 | CO158: 1.12 | CR158: 5.9 | CS158: 10 | CZ158: 4 | DA158: 0 | DB158: 2
BY159: 5 | BZ159: Bezelye Silajı | CA159: 24 | CB159: 1.95 | CC159: 25.7 | CD159: 13.7 | CE159: 19.6 | CH159: 0.48 | CK159: 54 | CL159: 2.38 | CM159: 1.16 | CN159: 0.43 | CZ159: 5.5 | DA159: 0 | DB159: 2
BY160: 6 | BZ160: Bezelye Silajı | CA160: 25 | CB160: 2.1 | CC160: 16 | CD160: 11.2 | CE160: 11.4 | CG160: 1.25 | CH160: 0.28 | CI160: 29 | CJ160: 55 | CK160: 58 | CL160: 2.6 | CM160: 1.3 | CN160: 0.6 | CO160: 1.3 | CP160: 44 | CQ160: 61 | CR160: 3.3 | CS160: 8 | CT160: 1.6 | CV160: 0.29 | CW160: 32 | CX160: 37.8 | CZ160: 5.5 | DA160: 0 | DB160: 2
BY161: 7 | BZ161: Brom Otu (Bromegrass) Balya Silajı | CA161: 35 | CB161: 2.1 | CC161: 11 | CD161: 7.7 | CE161: 6.9 | CF161: 2.9 | CG161: 0.38 | CH161: 0.3 | CI161: 36 | CJ161: 69 | CK161: 57 | CL161: 2.5 | CM161: 1.3 | CN161: 0.6 | CO161: 1.3 | CP161: 44 | CQ161: 61 | CR161: 2.5 | CS161: 8 | CT161: 2 | CV161: 0.2 | CW161: 19 | CZ161: 10 | DA161: 0 | DB161: 2
BY162: 8 | BZ162: Buğday Silajı | CA162: 33 | CB162: 2.1 | CC162: 12 | CD162: 8.4 | CE162: 7.8 | CF162: 2.5 | CG162: 0.4 | CH162: 0.28 | CI162: 28 | CJ162: 62 | CK162: 59 | CL162: 2.6 | CM162: 1.3 | CN162: 0.6 | CO162: 1.3 | CP162: 37 | CQ162: 61 | CR162: 3.2 | CS162: 8 | CT162: 2.1 | CU162: 0.5 | CV162: 0.21 | CW162: 27 | CX162: 29.4 | CZ162: 3.5 | DA162: 0 | DB162: 2
BY163: 9 | BZ163: Çayır Kelp Kuyruğu (Timothy) Silajı | CA163: 34 | CB163: 2.1 | CC163: 10 | CD163: 7 | CE163: 6 | CF163: 2.5 | CG163: 0.5 | CH163: 0.27 | CI163: 34 | CJ163: 70 | CK163: 59 | CL163: 2.6 | CM163: 1.3 | CN163: 0.6 | CO163: 1.3 | CP163: 45 | CQ163: 61 | CR163: 3.4 | CS163: 7 | CT163: 1.7 | CV163: 0.15 | CX163: 18 | CZ163: 10 | DA163: 0 | DB163: 2
BY164: 10 | BZ164: Çayır Silajı | CA164: 30 | CB164: 2.2 | CC164: 11 | CD164: 7.7 | CE164: 6.9 | CF164: 2.6 | CG164: 0.7 | CH164: 0.24 | CI164: 32 | CJ164: 60 | CK164: 61 | CL164: 2.7 | CM164: 1.4 | CN164: 0.7 | CO164: 1.3 | CP164: 39 | CQ164: 61 | CR164: 3.4 | CS164: 8 | CT164: 2.1 | CV164: 0.22 | CW164: 29 | CZ164: 5 | DA164: 0 | DB164: 2
BY165: 11 | BZ165: Çayır Silajı (Napiergrass) | CA165: 26 | CB165: 1.56 | CC165: 4.8 | CD165: 0.4 | CE165: 0.5 | CH165: 0.31 | CK165: 43 | CL165: 1.9 | CM165: 0.94 | CN165: 0 | CZ165: 5 | DA165: 0 | DB165: 2
BY166: 12 | BZ166: Çayır Silajı (Rye Grass) | CA166: 32 | CB166: 2.1 | CC166: 14 | CD166: 9.8 | CE166: 9.6 | CF166: 3.5 | CG166: 0.43 | CH166: 0.38 | CI166: 22 | CJ166: 59 | CK166: 59 | CL166: 2.6 | CM166: 1.3 | CN166: 0.6 | CO166: 1.3 | CP166: 37 | CQ166: 61 | CR166: 3.3 | CS166: 8 | CT166: 2.9 | CU166: 0.73 | CV166: 0.23 | CW166: 29 | CX166: 11.6 | CZ166: 5 | DA166: 0 | DB166: 2
BY167: 13 | BZ167: Kanola Silajı | CA167: 23 | CB167: 2.1 | CC167: 14 | CD167: 9.8 | CE167: 9.6 | CF167: 3.5 | CG167: 0.43 | CH167: 0.38 | CI167: 22 | CJ167: 46.8 | CK167: 55 | CL167: 2.6 | CM167: 1.3 | CN167: 0.6 | CO167: 1.3 | CP167: 39.7 | CQ167: 61 | CR167: 3.3 | CS167: 8 | CT167: 2.9 | CU167: 0.73 | CV167: 0.23 | CW167: 29 | CX167: 11.6 | CZ167: 5 | DA167: 0 | DB167: 2
BY168: 14 | BZ168: Köpekdişi (Bermudagrass) Silajı | CA168: 26 | CB168: 1.8 | CC168: 10 | CD168: 7 | CE168: 6 | CF168: 1.5 | CG168: 0.46 | CH168: 0.2 | CI168: 30 | CK168: 50 | CL168: 2.2 | CM168: 1.1 | CN168: 0.3 | CO168: 1.1 | CP168: 37 | CQ168: 48 | CR168: 1.9 | CS168: 8 | CT168: 1.5 | CV168: 0.25 | CW168: 33 | CZ168: 2.5 | DA168: 0 | DB168: 2
BY169: 15 | BZ169: Mısır Silajı, Olgun | CA169: 34 | CB169: 2.6 | CC169: 8 | CD169: 5.6 | CE169: 4.2 | CF169: 2.2 | CG169: 0.28 | CH169: 0.23 | CI169: 21 | CJ169: 46 | CK169: 72 | CL169: 3.2 | CM169: 1.7 | CN169: 1 | CO169: 1.6 | CP169: 27 | CQ169: 70 | CR169: 3.1 | CS169: 5 | CT169: 1.1 | CU169: 0.2 | CV169: 0.12 | CW169: 22 | CX169: 5.922 | CZ169: 2.5 | DA169: 0 | DB169: 2
BY170: 16 | BZ170: Mısır Silajı, Süt Olumu | CA170: 26 | CB170: 2.4 | CC170: 8 | CD170: 5.6 | CE170: 4.2 | CF170: 1.4 | CG170: 0.4 | CH170: 0.27 | CI170: 26 | CJ170: 54 | CK170: 65 | CL170: 2.9 | CM170: 1.5 | CN170: 0.8 | CO170: 1.5 | CP170: 32 | CQ170: 60 | CR170: 2.8 | CS170: 6 | CT170: 1.6 | CV170: 0.11 | CW170: 20 | CZ170: 2.5 | DA170: 0 | DB170: 2
BY171: 17 | BZ171: Mısır Silajı, Tatlı Mısır | CA171: 24 | CB171: 2.4 | CC171: 11 | CD171: 7.7 | CE171: 6.9 | CG171: 0.24 | CH171: 0.26 | CI171: 20 | CJ171: 57 | CK171: 65 | CL171: 2.9 | CM171: 1.5 | CN171: 0.8 | CO171: 1.5 | CP171: 32 | CQ171: 60 | CR171: 5 | CS171: 5 | CT171: 1.2 | CU171: 0.17 | CV171: 0.16 | CW171: 39 | CX171: 1.711 | CZ171: 4 | DA171: 0 | DB171: 2
BY172: 18 | BZ172: Patates Bitkisi Silajı | CA172: 15 | CB172: 2.1 | CC172: 15 | CD172: 10.5 | CE172: 10.5 | CG172: 2.1 | CH172: 0.29 | CI172: 26 | CK172: 59 | CL172: 2.6 | CM172: 1.3 | CN172: 0.6 | CO172: 1.3 | CR172: 3.7 | CS172: 19 | CT172: 4 | CV172: 0.37 | CZ172: 5 | DA172: 0 | DB172: 2
BY173: 19 | BZ173: Sorgum Silajı | CA173: 32 | CB173: 2.1 | CC173: 9 | CD173: 6.3 | CE173: 5.1 | CF173: 2.7 | CG173: 0.48 | CH173: 0.21 | CI173: 27 | CJ173: 59 | CK173: 59 | CL173: 2.6 | CM173: 1.3 | CN173: 0.6 | CO173: 1.3 | CP173: 38 | CQ173: 70 | CR173: 2.7 | CS173: 6 | CT173: 1.7 | CU173: 0.45 | CV173: 0.11 | CW173: 30 | CX173: 3 | CY173: 662 | CZ173: 4 | DA173: 0 | DB173: 2
BY174: 20 | BZ174: Soya Silajı | CA174: 35 | CB174: 1.99 | CC174: 18 | CD174: 8.8 | CE174: 12.5 | CH174: 0.36 | CK174: 55 | CL174: 2.43 | CM174: 1.19 | CN174: 0.47 | CZ174: 5 | DA174: 0 | DB174: 2
BY175: 21 | BZ175: Sudan Otu Silajı | CA175: 31 | CB175: 2.1 | CC175: 10 | CD175: 7 | CE175: 6 | CF175: 2.8 | CG175: 0.58 | CH175: 0.27 | CI175: 30 | CJ175: 64 | CK175: 58 | CL175: 2.6 | CM175: 1.3 | CN175: 0.6 | CO175: 1.3 | CP175: 42 | CQ175: 61 | CR175: 3.1 | CS175: 10 | CT175: 2.4 | CU175: 0.52 | CV175: 0.14 | CW175: 29 | CX175: 21 | CZ175: 2.5 | DA175: 0 | DB175: 2
BY176: 22 | BZ176: Şeker Pancarı Yaprağı Silajı | CA176: 25 | CB176: 1.9 | CC176: 12 | CD176: 8.4 | CE176: 7.8 | CG176: 1.38 | CH176: 0.22 | CI176: 12 | CK176: 52 | CL176: 2.3 | CM176: 1.1 | CN176: 0.4 | CO176: 1.1 | CR176: 2 | CS176: 32 | CT176: 5.7 | CV176: 0.57 | CW176: 20 | CZ176: 11 | DA176: 0 | DB176: 2
BY177: 23 | BZ177: Şerbetçiotu Asması Silajı | CA177: 30 | CB177: 1.9 | CC177: 15 | CD177: 10.5 | CE177: 10.5 | CG177: 3.3 | CH177: 0.37 | CI177: 21 | CK177: 53 | CL177: 2.3 | CM177: 1.2 | CN177: 0.4 | CO177: 1.2 | CP177: 24 | CR177: 3.1 | CS177: 20 | CT177: 1.8 | CV177: 0.22 | CW177: 44 | CZ177: 11 | DA177: 0 | DB177: 2
BY178: 24 | BZ178: Şeytan Otu Silajı (Pangolagrass) | CA178: 32 | CB178: 2.03 | CC178: 8.9 | CD178: 3 | CE178: 4.3 | CH178: 0.08 | CK178: 56 | CL178: 2.47 | CM178: 1.21 | CN178: 0.51 | CZ178: 3 | DA178: 0 | DB178: 2
BY179: 25 | BZ179: Tritikale Silajı | CA179: 34 | CB179: 2.1 | CC179: 14 | CD179: 9.8 | CE179: 9.6 | CG179: 0.58 | CH179: 0.34 | CI179: 30 | CJ179: 56 | CK179: 58 | CL179: 2.6 | CM179: 1.3 | CN179: 0.6 | CO179: 1.3 | CP179: 39 | CQ179: 61 | CR179: 3.6 | CT179: 2.7 | CV179: 0.28 | CW179: 36 | CZ179: 4 | DA179: 0 | DB179: 2
BY180: 26 | BZ180: Yonca Silajı | CA180: 30 | CB180: 2 | CC180: 18 | CD180: 12.6 | CE180: 13.2 | CF180: 3.4 | CG180: 1.4 | CH180: 0.29 | CI180: 28 | CJ180: 49 | CK180: 55 | CL180: 2.4 | CM180: 1.2 | CN180: 0.5 | CO180: 1.2 | CP180: 37 | CQ180: 82 | CR180: 3 | CS180: 9 | CT180: 2.6 | CU180: 0.41 | CV180: 0.29 | CW180: 26 | CX180: 19.8 | CZ180: 4 | DA180: 0 | DB180: 2
BY181: 27 | BZ181: Yonca Silajı, Soldurulmuş | CA181: 39 | CB181: 2.1 | CC181: 18 | CD181: 12.6 | CE181: 13.2 | CF181: 4 | CG181: 1.4 | CH181: 0.29 | CI181: 28 | CJ181: 49 | CK181: 58 | CL181: 2.6 | CM181: 1.3 | CN181: 0.6 | CO181: 1.3 | CP181: 37 | CQ181: 82 | CR181: 3 | CS181: 9 | CT181: 2.6 | CU181: 0.41 | CV181: 0.29 | CW181: 26 | CX181: 12 | CZ181: 4 | DA181: 0 | DB181: 2
BY182: 28 | BZ182: Yonca Silajı, Tam Çiçeklenmiş | CA182: 26 | CB182: 2.1 | CC182: 17.5 | CD182: 8.5 | CE182: 12.1 | CK182: 58 | CL182: 2.56 | CM182: 1.26 | CN182: 0.58 | CP182: 38 | CZ182: 4 | DA182: 0 | DB182: 2
BY183: 29 | BZ183: Yulaf Silajı | CA183: 35 | CB183: 2.2 | CC183: 12 | CD183: 8.4 | CE183: 7.8 | CF183: 2.5 | CG183: 0.34 | CH183: 0.3 | CI183: 31 | CJ183: 59 | CK183: 60 | CL183: 2.6 | CM183: 1.3 | CN183: 0.7 | CO183: 1.3 | CP183: 39 | CQ183: 61 | CR183: 3.2 | CS183: 10 | CT183: 2.4 | CU183: 0.5 | CV183: 0.25 | CW183: 27 | CX183: 9 | CZ183: 4 | DA183: 0 | DB183: 2
BY184: 30
BY185: 31
BY186: 32
BY187: 33
BY188: 34
BY189: 35
BY190: 36
BY191: 37
BY192: 38
BY193: 39
BY194: 40
BY195: 41
BY196: 42
BY197: 43
BY198: 44
BY199: 45
BY200: 46
... 333 more rows
